Workbook

Sheet ARK Disclosure
A2: This work is licensed under a Creative Commons Attribution-Non-Commercial 4.0 International License.
A3: You may not use the material for commercial purposes without first obtaining written permission.
A5: 2020, ARK Investment Management LLC. All content is original and has been researched and produced by ARK Investment Management LLC (“ARK”) unless otherwise stated herein.
A7: This material is for informational purposes only and does not constitute, either explicitly or implicitly, any provision of services or products by ARK. Nothing contained herein constitutes investment, legal, tax or other advice and is not to be relied on in making an investment or other decision. Investors should determine for themselves whether a particular service or product is suitable for their investment needs or should seek such professional advice for their particular situation.
A9: This material is intended only to provide observations and views of the author(s) at the time of writing, both of which are subject to change at any time without prior notice. Certain of the statements contained herein are statements of future expectations and other forward-looking statements that are based on ARK's current views and assumptions and involve known and unknown risks and uncertainties that could cause actual results, performance or events to differ materially from those expressed or implied in such statements. Past performance is no guarantee of future results. Equities may decline in value due to both real and perceived general market, economic, and industry conditions.
A11: ARK's statements are not an endorsement of any company or a recommendation to buy,sell, or hold any security. For a list of all purchases and sales made by ARK for client accounts during the past year that could be considered by the SEC as recommendations, please go to https://ark-invest.com/wp-content/trades/ARK_Trades.pdf. It should not be assumed that recommendations made in the future will be profitable or will equal the performance of the securities in this list. For full disclosures, please go to https://ark-invest.com/terms-of-use.
A13: While ARK’s current assessment of the subject company may be positive, please note that it may be necessary for ARK to liquidate or reduce position sizes prior to the company attaining any indicated valuation prices due to a variety of conditions including, but not limited to, client specific guidelines, changing market conditions, investor activity, fundamental changes in the company’s business model and competitive landscape, headline risk, and government/regulatory activity. Additionally, ARK does not have investment banking, consulting, or any type of fee-paying relationship with the subject company.

Sheet Table of Contents
B4: Tab | C4: Description
B5: Probabilities | C5: Can change probabilities for likelihood of outcomes as described by ARK. Does not change actual inputs, just the probabilities.
B7: Tesla Valuation | C7: Can change underlying inputs for Tesla valuation.
B8: Valuation ASP Tables | C8: Can change the average selling price assumptions for the Tesla Valuation.
B10: Monte Carlo Inputs | C10: Can change the range of inputs for a monte carlo valuation of Tesla.
B11: Monte Carlo ASP Tables | C11: Can change the average selling price assumptions for the monte carlo valuation.
B12: Monte Carlo Tesla Valuation | C12: Shows a singe simulation of the monte carlo valuation in the same format as the "Tesla Valuation" tab.
B13: Monte Carlo Simulations | C13: A log of the simulations used for the monte carlo simulation.

Sheet Probabilities
B1: Instructions:
B2: Change the probabilities in blue to see your expected value for Tesla in 2024
B3: Notes:
B4: For definitions of the independent variables refer to the Read Me file or this publication (https://ark-invest.com/research/tesla-price-target). Based upon these probabilities, the likely outcome for Tesla is contingent upon other potential business performance factors. Use your own judgement. Current inputs do no account for any impact from COVID-19. | E4: Case | F4: 2024 Projected Share Price | G4: Probability for Calculations
E5: Expected Value | F5: =ROUND(SUMPRODUCT(I11:I20,H11:H20),IF(SUMPRODUCT(I11:I20,H11:H20)>2000,-3,IF(SUMPRODUCT(I11:I20,H11:H20)>500,-2,-1))) -> $7,000 | G5: Probability-weighted-average 2024 share price* | H5: *Note that expected value can exceed the "Bull Case." This is because the bull case is defined as a 25% chance the price is at or above the denoted share price. If there is a low probability of a very high price target, it can result in an expected value higher than the bull case.
B6: Independent Variables | C6: Probability | E6: ="Bear Case - "&TEXT(MAX(G6,C18),"0%")&" Chance at or below this share price" -> Bear Case - 25% Chance at or below this share price | F6: =IF($C$18>G6,0,ROUND((INDEX(M$11:M$20,MATCH(G6,N$11:N$20)+1)-INDEX(M$11:M$20,MATCH(G6,N$11:N$20)))/(INDEX(N$11:N$20,MATCH(G6,N$11:N$20)+1)-INDEX(N$11:N$20,MATCH(G6,N$11:N$20)))*(G6-INDEX(N$11:N$20,MATCH(G6,N$11:N$20)))+INDEX(M$11:M$20,MATCH(G6,N$11:N$20)),-2)) -> $1,500 | G6: 25%
B7: Tesla enables robotaxi capability at scale | C7: 30% | E7: ="Bull Case - "&TEXT(MIN(1-C18,1-G7),"0%")&" Chance at or above this share price" -> Bull Case - 25% Chance at or above this share price | F7: =IF($C$18>G7,0,ROUND((INDEX(M$11:M$20,MATCH(G7,N$11:N$20)+1)-INDEX(M$11:M$20,MATCH(G7,N$11:N$20)))/(INDEX(N$11:N$20,MATCH(G7,N$11:N$20)+1)-INDEX(N$11:N$20,MATCH(G7,N$11:N$20)))*(G7-INDEX(N$11:N$20,MATCH(G7,N$11:N$20)))+INDEX(M$11:M$20,MATCH(G7,N$11:N$20)),-2)) -> $15,000 | G7: 75%
B8: Tesla fails to create a fully autonomous car | C8: =1-C7 -> 70% | E8: Median Case | F8: =IF($C$18>G8,0,ROUND((INDEX(M$11:M$20,MATCH(G8,N$11:N$20)+1)-INDEX(M$11:M$20,MATCH(G8,N$11:N$20)))/(INDEX(N$11:N$20,MATCH(G8,N$11:N$20)+1)-INDEX(N$11:N$20,MATCH(G8,N$11:N$20)))*(G8-INDEX(N$11:N$20,MATCH(G8,N$11:N$20)))+INDEX(M$11:M$20,MATCH(G8,N$11:N$20)),-2)) -> $2,700 | G8: 50%
L9: Note: This table is used for calculation purposes
B10: Tesla scales factories capital efficiently | C10: 50% | E10: Scenario | H10: 2024 Price Target** | I10: Probability | J10: Cumulative Probability | L10: Probability | M10: 2024 target | N10: Cumulative probability
B11: Tesla has below industry average capital efficiency | C11: =1-C10 -> 50% | E11: The Golden Goose: Tesla lowers costs, efficiently builds factories, and launches its autonomous network. | H11: $22,000 | I11: =C7*C10*C13*C19 -> 12% | J11: =VLOOKUP(H11,$M$11:$N$20,2,0) -> 100% | L11: =I20 -> 1% | M11: =H20 -> $0 | N11: =L11 -> 1%
E12: The Autonomous Builder: Tesla launches its autonomous network and builds factories efficiently, but can't lower costs. | H12: $20,500 | I12: =C7*C10*C14*C19 -> 3% | J12: 88% | L12: =I19 -> 5% | M12: =H19 -> $300 | N12: =N11+L12 -> 6%
B13: Tesla's parts and labor costs follow Wright's Law | C13: 80% | E13: The Autonomous Car Company: Tesla launches its autonomous network, and lowers costs, but can't efficiently build factories. | H13: $15,200 | I13: =C7*C11*C13*C19 -> 12% | J13: 85% | L13: =I18 -> 2% | M13: =H18 -> $750 | N13: 8%
B14: Tesla's part and labor costs are in line with industry | C14: =1-C13 -> 20% | E14: Autonomous Over Everything: Tesla launches its autonomous network, but can't lower costs or efficiently build factories. | H14: $15,000 | I14: =C7*C11*C14*C19 -> 3% | J14: 73% | L14: =I17 -> 7% | M14: =H17 -> $1,000 | N14: 15%
E15: The High Functioning EV Company: Tesla lowers costs, and efficiently builds factories, but can't launch its autonomous network. | H15: $3,400 | I15: =C8*C10*C13*C19 -> 28% | J15: 70% | L15: =I16 -> 28% | M15: =H16 -> $2,500 | N15: 43%
B16: In cases where Tesla turns out to be a Struggle Bus what percent of the time do capital markets shut it out | C16: 70% | E16: At Least There's Wright's Law: Tesla lowers costs, but can't efficiently build factories and doesn't launch its autonomous network. | H16: $2,500 | I16: =C8*C11*C13*C19 -> 28% | J16: 43% | L16: =I15 -> 28% | M16: =H15 -> $3,400 | N16: 70%
E17: The Factory Builder: Tesla efficiently builds factories, but can't lower costs, and doesn't launch its autonomous network. | H17: $1,000 | I17: =C8*C10*C14*C19 -> 7% | J17: 15% | L17: =I14 -> 3% | M17: =H14 -> $15,000 | N17: 73%
B18: Tesla goes bankrupt | C18: 1% | E18: The Struggle Bus: Nothing goes right for Tesla. It can't lower costs, efficiently build factories, or launch its autonomous network. | H18: $750 | I18: =C8*C11*C14*C19*(1-C16) -> 2% | J18: 8% | L18: =I13 -> 12% | M18: =H13 -> $15,200 | N18: 85%
B19: Tesla's stock is worth >$0 in 2024 | C19: =1-C18 -> 99% | E19: Capital Markets Closed: Nothing goes right for Tesla and no one is willing to provide capital. | H19: $300 | I19: =C8*C11*C14*C19*(C16) -> 5% | J19: 6% | L19: =I12 -> 3% | M19: =H12 -> $20,500 | N19: 88%
E20: The Black Swan: For one reason or another Tesla goes bankrupt. | H20: $0 | I20: =C18 -> 1% | J20: 1% | L20: =I11 -> 12% | M20: =H11 -> $22,000 | N20: 100%
H21: **Price targets for the ten scenarios are static. The results are based on changes to the probability inputs.

Sheet Tesla Valuation
A1: Excerpt from ARK's Tesla Valuation Model
A2: Values are in millions unless otherwise specified except for per share amounts, multiples, and ratios.
A4: Key:
A5: Blue text indicates assumptions that can be altered, altering one input may require altering another input in order to get reasonable results
A6: Black text indicates cells with formulas or cells with static values that are not meant to be altered
I8: 2024 Suggested Share Price | J8: =G106 -> $1,487
B10: 2019 | C10: 2020 | D10: 2021 | E10: 2022 | F10: 2023 | G10: 2024 | L10: Notes
A11: Key drivers | I11: ARK's Bear Case Inputs | J11: ARK's Bull Case Inputs
A12: Max gross margin | G12: 29% | I12: 29% | J12: 25% | L12: Gross margin is driven by Wright's Law. This input is the max gross margin that the model allows Tesla to achieve on electric vehicles; if Tesla were to feel competitive pressure it could continue to add range/battery capacity to its vehicles and so generate less gross profit than Wright's Law would otherwise suggest.
A13: Capital efficiency (gross capex per unit production) | G13: $15,000 | I13: $15,000 | J13: $16,000 | L13: The cost per unit of new production capacity. Lower = more efficient
A14: Percent of all Teslas in autonomous fleet in 2024 | G14: 0% | I14: 0% | J14: 70% | L14: Percent of Tesla's vehicles on the road that are operating as robotaxis in 2024
A15: Percent of factory-build debt-funded | G15: 10% | I15: 10% | J15: 60% | L15: Determines how much debt Tesla raises as it scales
A16: Balance sheet assumptions
A17: Weighted average market cap at which equity raised | G17: 150,000 | L17: Determines the amount equity dilution Tesla takes on. For simplicity all equity raises happen at this value.
A18: Equity raise for capex | G18: 7,000 | L18: $2 billion of which already raised in a recent offering
A19: Equity raise for incentive compensation | G19: 3,000 | L19: Also for simplicity all raises for incentive comp happen at market cap defined in line 17
A20: Margin assumptions
A21: Wright's Law learning rate | G21: 15% | L21: The percent cost decline for every cumulative doubling of production.
A22: Max annual production increase | G22: 100% | L22: Provides an upper bound for vehicle production to accommodate management bandwidth constraints in building out factories.
A23: Factory utilization | G23: 95% | L23: Applied uniformly across all years
A24: 2020 Factory utilization | G24: 80% | L24: To accommodate coronavirus impact
A25: 2020 ASP % of otherwise expected | G25: 90% | L25: To accommodate coronavirus impact
A26: Percent of each model/price segment that Tesla penetrates | G26: 20% | L26: See ASP Tables tab. Provides an upper bound for addressable market within each vehicle segment.
A28: Tax rate | G28: 20% | L28: Tax loss carry-forwards are not built into this model
A29: Interest rate | G29: 4% | L29: Applied uniformly across all years for simplicity
A30: Autonomous assumptions
A31: Miles traveled per robotaxi (not in millions) | G31: 110,000 | L31: Average taxi does 70k miles per year. 110k ~= 16 hours per day at 20 miles per hour.
A32: Tesla platform fee | G32: 50% | L32: Lyft is at roughly 27%. Tesla has said 30%. We believe autonomous platforms will be able to command a fee on the high end because they will offer more value. As of Feb 2020. | M32: https://ark-invest.com/research/autonomous-ridehailing-fees
A33: Tesla platform fee China | G33: 10% | L33: Assumes that Chinese partners capture some of the China monetization.
A34: % of fleet in China | G34: 33% | L34: Only relevant for the autonomous platform fee calculation. Value stays the same across all years for simplicity.
A35: Valuation assumptions
A36: Electric vehicle business SG&A as % of sales | G36: 10% | L36: Roughly comparable to premium auto competitors (Tesla currently at ~11%)
A37: Electric vehicle business R&D as % of sales | G37: 6% | L37: Roughly comparable to premium auto competitors (Tesla currently at ~6%)
A38: Autonomous EBITDA margin | G38: 40% | L38: This is margin on net platform fee revenues.
A39: EV/EBITDA electric vehicle business | G39: 11 | L39: ~Industry average for motor vehicles
A40: EV/EBITDA autonomous robotaxi business | G40: 16 | L40: Much less than industry average for software.
A41: Electric Vehicle Business
A42: Cars Produceable (units, not in millions) | B42: 362,749 | C42: =(2000000000)/$G13+B42 -> 496,083 | D42: =(C62-B62)/$G13+C42 -> 992,165 | E42: =(D62-C62)/$G13+D42 -> 1,317,248 | F42: =(E62-D62)/$G13+E42 -> 1,912,544 | G42: =(F62-E62)/$G13+F42 -> 2,704,574 | L42: ARK estimates 37 million EVs sold globally in 2024. Assumes Capex committed in the prior year converts into production volume in this year. ([Previous years Gross PP&E]-[2 year previous Gross PP&E])/[Capital Efficiency]
A43: Cars sold | C43: =C42*$G24 -> 396,866 | D43: =D42*$G23 -> 942,557 | E43: =E42*$G23 -> 1,251,386 | F43: =F42*$G23 -> 1,816,916 | G43: =G42*$G23 -> 2,569,346 | L43: [Cars Produceable]*[Factory Utilization]
A45: Cumulative cars sold (modeled estimate) | B45: 800,000 | C45: =B45+C43 -> 1,196,866 | D45: =C45+D43 -> 2,139,423 | E45: =D45+E43 -> 3,390,809 | F45: =E45+F43 -> 5,207,725 | G45: =F45+G43 -> 7,777,071 | L45: [B43]*[cumulative sum of line 41]
A47: ASP (not in millions) | B47: =B48/B42 -> 57,398 | C47: =(G25)*(INDEX('Valuation ASP Tables'!$F7:$F12,MATCH(C42/1000,'Valuation ASP Tables'!$E$7:$E$12))*(INDEX('Valuation ASP Tables'!$E7:$E12,MATCH(C42/1000,'Valuation ASP Tables'!$E$7:$E$12)))+(C42/1000-INDEX('Valuation ASP Tables'!$E7:$E12,MATCH(C42/1000,'Valuation ASP Tables'!$E$7:$E$12)))*INDEX('Valuation ASP Tables'!$B7:$B12,MATCH(C42/1000,'Valuation ASP Tables'!$E$7:$E$12)+1))/(C42/1000) -> 53,817 | D47: =(INDEX('Valuation ASP Tables'!$F7:$F12,MATCH(D42/1000,'Valuation ASP Tables'!$E$7:$E$12))*(INDEX('Valuation ASP Tables'!$E7:$E12,MATCH(D42/1000,'Valuation ASP Tables'!$E$7:$E$12)))+(D42/1000-INDEX('Valuation ASP Tables'!$E7:$E12,MATCH(D42/1000,'Valuation ASP Tables'!$E$7:$E$12)))*INDEX('Valuation ASP Tables'!$B7:$B12,MATCH(D42/1000,'Valuation ASP Tables'!$E$7:$E$12)+1))/(D42/1000) -> 54,428 | E47: =(INDEX('Valuation ASP Tables'!$F7:$F12,MATCH(E42/1000,'Valuation ASP Tables'!$E$7:$E$12))*(INDEX('Valuation ASP Tables'!$E7:$E12,MATCH(E42/1000,'Valuation ASP Tables'!$E$7:$E$12)))+(E42/1000-INDEX('Valuation ASP Tables'!$E7:$E12,MATCH(E42/1000,'Valuation ASP Tables'!$E$7:$E$12)))*INDEX('Valuation ASP Tables'!$B7:$B12,MATCH(E42/1000,'Valuation ASP Tables'!$E$7:$E$12)+1))/(E42/1000) -> 54,076 | F47: =(INDEX('Valuation ASP Tables'!$F7:$F12,MATCH(F42/1000,'Valuation ASP Tables'!$E$7:$E$12))*(INDEX('Valuation ASP Tables'!$E7:$E12,MATCH(F42/1000,'Valuation ASP Tables'!$E$7:$E$12)))+(F42/1000-INDEX('Valuation ASP Tables'!$E7:$E12,MATCH(F42/1000,'Valuation ASP Tables'!$E$7:$E$12)))*INDEX('Valuation ASP Tables'!$B7:$B12,MATCH(F42/1000,'Valuation ASP Tables'!$E$7:$E$12)+1))/(F42/1000) -> 53,741 | G47: =(INDEX('Valuation ASP Tables'!$F7:$F12,MATCH(G42/1000,'Valuation ASP Tables'!$E$7:$E$12))*(INDEX('Valuation ASP Tables'!$E7:$E12,MATCH(G42/1000,'Valuation ASP Tables'!$E$7:$E$12)))+(G42/1000-INDEX('Valuation ASP Tables'!$E7:$E12,MATCH(G42/1000,'Valuation ASP Tables'!$E$7:$E$12)))*INDEX('Valuation ASP Tables'!$B7:$B12,MATCH(G42/1000,'Valuation ASP Tables'!$E$7:$E$12)+1))/(G42/1000) -> 53,674 | L47: Uses [cars sold] to move down ASP table. ASP is calculated as if Tesla sells out addressable markets sequentially first X, S , then 3, then Y, then Cybertruck, then Model A, with any spillover in an NEV. (The formula takes ASP at the sales volume from the last model-type that they sold out then calculates final ASP by linearly-interpolating ASP between that breakpoint and the next breakpoint in the table.)
A48: Revenue (EV business only) | B48: 20,821 | C48: =C43*C47 -> 21,358 | D48: =D43*D47 -> 51,302 | E48: =E43*E47 -> 67,670 | F48: =F43*F47 -> 97,643 | G48: =G43*G47 -> 137,906 | L48: EV only! [ASP]*[Cars sold]
A50: Part and labor and other cost per vehicle (not in millions) | B50: =B47*(1-B53)-B51 -> 40,794 | C50: =$B50*(C45/$B$45)^((LN(1-$G21)/LN(2))) -> 37,117 | D50: =$B50*(D45/$B$45)^((LN(1-$G21)/LN(2))) -> 32,392 | E50: =$B50*(E45/$B$45)^((LN(1-$G21)/LN(2))) -> 29,076 | F50: =$B50*(F45/$B$45)^((LN(1-$G21)/LN(2))) -> 26,293 | G50: =$B50*(G45/$B$45)^((LN(1-$G21)/LN(2))) -> 23,934 | L50: Uses Wright's Law to step down from 2019 estimate of parts and labor and 2019 cumulative sales volume. Teardowns of the Model 3 have suggested $25k for labor and materials. [2019 cumulative cars sold]*([Cumulative cars sold]/[2019 cumulative cars sold])^((LN(1-[learning rate])/LN(2)))
A51: Capital consumed per vehicle | B51: =B64/B42*24000/(1500+24000) -> 4,411 | C51: =C64/C43 -> 6,497 | D51: =D64/D43 -> 3,305 | E51: 3,274 | F51: 2,974 | G51: =G64/G43 -> 2,821 | L51: [Net depreciation]/[Cars sold]. In 2019 some adjustment is made to restrict depreciation applied here to the EV PP&E; ignored in subseqent years
A52: Total COGs per vehicle | B52: =MAX(SUM(B51,B50),(1-$G12)*B47) -> 45,205 | C52: 43,614 | D52: 38,644 | E52: 38,394 | F52: =MAX(SUM(F51,F50),(1-$G12)*F47) -> 38,156 | G52: 38,108 | L52: Max of either: [capital consumed per vehicle}+[Parts and labor per vehicle] OR [COGs required to prevent gross margin from moving about max gross margin in line 12]
A53: Gross Margin | B53: =B54/B48 -> 21% | C53: =(1-C52/C47) -> 19% | D53: =(1-D52/D47) -> 29% | E53: =(1-E52/E47) -> 29% | F53: =(1-F52/F47) -> 29% | G53: =1-(G52)/G47 -> 29% | L53: 1- [line 50]/[line 45]
A54: Gross Profit | B54: =B48-16398000000 -> 4,423 | C54: =C53*C48 -> 4,049 | D54: =D53*D48 -> 14,878 | E54: =E53*E48 -> 19,624 | F54: =F53*F48 -> 28,316 | G54: =G53*G48 -> 39,993 | L54: [gross margin]*[cars sold]
A55: SG&A | B55: =B56*B48 -> 2,290 | C55: 2,136 | D55: 5,130 | E55: 6,767 | F55: 9,764 | G55: 13,791 | L55: [sg&a as % of sales]*[sales]
A56: SG&A/Sales | B56: 11% | C56: =$G56 -> 10% | D56: =$G56 -> 10% | E56: =$G56 -> 10% | F56: =$G56 -> 10% | G56: =G36 -> 10% | L56: Input
A57: R&D | B57: =B58*B48 -> 1,249 | C57: 1,281 | D57: 3,078 | E57: 4,060 | F57: 5,859 | G57: 8,274 | L57: [R&D as percent of sales]*[sales]
A58: R&D/Sales | B58: 6% | C58: =$G58 -> 6% | D58: =$G58 -> 6% | E58: =$G58 -> 6% | F58: =$G58 -> 6% | G58: =G37 -> 6% | L58: Input
A60: EBIT (EV business only) | B60: =B54-B55-B57 -> 883 | C60: 632 | D60: 6,669 | E60: 8,797 | F60: 12,694 | G60: 17,928 | L60: [Gross profit]-[SG&A]-[R&D]. Note: depreciation is already pulled out in the gross margin line.
A61: EBIT margin | G61: =G60/G48 -> 13% | L61: [EBIT]/[EV revenue]
A62: Gross property, plant and equipment | B62: 16,000 | C62: =B62+IF(B72<0,0,MIN((B72),B73))/(1-$G15) -> 23,441 | D62: =C62+IF(C72<0,0,MIN((C72),C73))/(1-$G15) -> 28,317 | E62: =D62+IF(D72<0,0,MIN((D72),D73))/(1-$G15) -> 37,247 | F62: =E62+IF(E72<0,0,MIN((E72),E73))/(1-$G15) -> 49,127 | G62: =F62+IF(F72<0,0,MIN((F72),F73))/(1-$G15) -> 65,881 | L62: [Previous year's Gross PP&E]+(lesser of [Year end cash available for investment, line 70] or [Maximum amount deployable given scaling constraint, line 71])/(1-[Percent of factory debt-funded]); if year-end cash = negative, keep gross pp&e flat and store negative balance in spillover line
A63: Accumulated depreciation | B63: =B65-B62 -> -5,600,000,000 | C63: =B63-C64 -> -8,179 | D63: =C63-D64 -> -11,293 | E63: =D63-E64 -> -15,391 | F63: =E63-F64 -> -20,795 | G63: =F63-G64 -> -28,042 | L63: Cumulative sum [line 62]
A64: Annual depreciation | B64: 1,700,000,000 | C64: =C62*C67 -> 2,579 | D64: =D62*D67 -> 3,115 | E64: =E62*E67 -> 4,097 | F64: =F62*F67 -> 5,404 | G64: =G62*G67 -> 7,247 | L64: [Line 60]*[line 65]
A65: Net property, plant and equipment | B65: 10,400 | C65: =C62+C63 -> 15,263 | D65: =D62+D63 -> 17,024 | E65: =E62+E63 -> 21,856 | F65: =F62+F63 -> 28,333 | G65: =G62+G63 -> 37,840 | L65: [Gross PP&E]-[Accumulated depreciation]
A67: Depreciation/Gross PP&E | B67: 11% | C67: =$G67 -> 11% | D67: =$G67 -> 11% | E67: =$G67 -> 11% | F67: =$G67 -> 11% | G67: 11% | L67: Input, consistent with capex having a 9 year life straight line
A68: Working capital days | B68: =B69/B48*365 -> 81 | C68: 79 | D68: 33 | E68: 25 | F68: 17 | G68: =G69/G48*365 -> 12 | L68: [Working capital]/[EV revenue]*365, consistent with Tesla working towards a working capital neutral balance sheet stance
A69: Working capital | B69: =4600000000 -> 4,600 | C69: =B69*($G69/$B69)^(1/5) -> 4,600 | D69: =C69*($G69/$B69)^(1/5) -> 4,600 | E69: 4,600 | F69: 4,600 | G69: 4,600 | L69: Input. In between years interpolate between 2024 and 2019 datapoints on a CAGR basis. May break in expected ways with the wrong value here.
A70: Total long term debt | B70: 11,700 | C70: =B70+(C62-B62)*$G15 -> 12,444 | D70: =C70+(D62-C62)*$G15 -> 12,932 | E70: =D70+(E62-D62)*$G15 -> 13,825 | F70: =E70+(F62-E62)*$G15 -> 15,013 | G70: =F70+(G62-F62)*$G15 -> 16,688 | L70: [Previous years debt] + [percent of factories debt funded]*([this year's gross PP&E]-[previous year's gross PP&E])
A71: Average interest paid (%) | C71: =D71 -> 4% | D71: =E71 -> 4% | E71: =F71 -> 4% | F71: =G71 -> 4% | G71: =G29 -> 4.0% | L71: Input
A72: Year end cash for investment (includes anticipated equity raise) | B72: =6000000000-B69+G18 -> 8,400 | C72: =B69-C69+C97+B74 -> 4,389 | D72: =C69-D69+D97+C74 -> 8,036 | E72: =D69-E69+E97+D74 -> 10,692 | F72: =E69-F69+F97+E74 -> 15,078 | G72: =F69-G69+G97+F74 -> 21,055 | L72: [Cash generated, line 95]-([Current year working capital]-[Previous year working capital])+ [cash not deployed in the previous year due to scaling constraint]
A73: Max cash deployable given scaling constraint | B73: =(C42*$G22)*$G13*(1-$G15) -> 6,697 | C73: =(D42*$G22)*$G13*(1-$G15) -> 13,394 | D73: =(E42*$G22)*$G13*(1-$G15) -> 17,783 | E73: 25,819 | F73: 36,512 | G73: =(I42*$G22)*$G13*(1-$G15) -> 0 | L73: [Maximum increase in cars produceable allowable]*[Capex per unit production] expands to ---> [Next year's production]*[Scaling constraint]*[1-[%factory debt-funded]]*[Capex per unit production]
A74: Spillover cash not deployed | B74: =IF(B72-B73>0,B72-B73,0) -> 1,703 | C74: =IF(C72-C73>0,C72-C73,IF(C72<0,C72,0)) -> 0 | D74: =IF(D72-D73>0,D72-D73,IF(D72<0,D72,0)) -> 0 | E74: =IF(E72-E73>0,E72-E73,IF(E72<0,E72,0)) -> 0 | F74: =IF(F72-F73>0,F72-F73,IF(F72<0,F72,0)) -> 0 | G74: =IF(G72-G73>0,G72-G73,IF(G72<0,G72,0)) -> 21,055 | L74: If [Year end cash for investment] exceeds [Maximum cash deployable] shift the difference to this line to be deployed in the next year's capex; if cash generated is negative, hold the negative balance here to hold back investment in future years.
A75: Autonomous Mobility as a Service Business
A76: Fully Autonomous Capable Fleet (not in millions) | B76: =B45-200000 -> 600,000 | C76: 996,866 | D76: 1,939,423 | E76: 3,190,809 | F76: 5,007,725 | G76: 7,577,071 | L76: [Cumulative cars sold]-200k AP1 vehicles
A77: % of fleet in China | B77: =C77 -> 33% | C77: 33% | D77: 33% | E77: 33% | F77: =G77 -> 33% | G77: =G34 -> 33% | L77: Input
A78: Potential miles per Taxi (not in millions) | B78: =C78 -> 110,000 | C78: =D78 -> 110,000 | D78: =E78 -> 110,000 | E78: =F78 -> 110,000 | F78: =G78 -> 110,000 | G78: =G31 -> 110,000 | L78: Input
A79: % of Teslas on platform | D79: =E79/3 -> 0% | E79: =F79/3 -> 0% | F79: =G79/3 -> 0% | G79: =G14 -> 0% | L79: Input for 2024. 2023, 2022, and 2021 divide the next year's value by 3 (for simplicity)
A80: Total robotaxi miles | C80: =C79*C78*C76 -> 0 | D80: =D79*D78*D76 -> 0 | E80: =E79*E78*E76 -> 0 | F80: =F79*F78*F76 -> 0 | G80: =G79*G78*G76 -> 0 | L80: [autonomous capable fleet]*[miles per taxi]*[% of tesla's on-platform]
A81: Price per mile ($/mile) | C81: =IFERROR((INDEX('Valuation ASP Tables'!$A18:$A23,MATCH(C80/1000000000,'Valuation ASP Tables'!$A$18:$A$23))*(INDEX('Valuation ASP Tables'!$B18:$B23,MATCH(C80/1000000000,'Valuation ASP Tables'!$A$18:$A$23)))+(C80/1000000000-INDEX('Valuation ASP Tables'!$A18:$A23,MATCH(C80/1000000000,'Valuation ASP Tables'!$A$18:$A$23)))*INDEX('Valuation ASP Tables'!$B18:$B23,MATCH(C80/1000000000,'Valuation ASP Tables'!$A$18:$A$23)+1))/(C80/1000000000),4) -> $4.00 | D81: =IFERROR((INDEX('Valuation ASP Tables'!$A18:$A23,MATCH(D80/1000000000,'Valuation ASP Tables'!$A$18:$A$23))*(INDEX('Valuation ASP Tables'!$B18:$B23,MATCH(D80/1000000000,'Valuation ASP Tables'!$A$18:$A$23)))+(D80/1000000000-INDEX('Valuation ASP Tables'!$A18:$A23,MATCH(D80/1000000000,'Valuation ASP Tables'!$A$18:$A$23)))*INDEX('Valuation ASP Tables'!$B18:$B23,MATCH(D80/1000000000,'Valuation ASP Tables'!$A$18:$A$23)+1))/(D80/1000000000),4) -> $4.00 | E81: =IFERROR((INDEX('Valuation ASP Tables'!$A18:$A22,MATCH(E80/1000000000,'Valuation ASP Tables'!$A$18:$A$22))*(INDEX('Valuation ASP Tables'!$B18:$B22,MATCH(E80/1000000000,'Valuation ASP Tables'!$A$18:$A$22)))+(E80/1000000000-INDEX('Valuation ASP Tables'!$A18:$A22,MATCH(E80/1000000000,'Valuation ASP Tables'!$A$18:$A$22)))*INDEX('Valuation ASP Tables'!$B18:$B22,MATCH(E80/1000000000,'Valuation ASP Tables'!$A$18:$A$22)+1))/(E80/1000000000),4) -> $4.00 | F81: =IFERROR((INDEX('Valuation ASP Tables'!$A18:$A22,MATCH(F80/1000000000,'Valuation ASP Tables'!$A$18:$A$22))*(INDEX('Valuation ASP Tables'!$B18:$B22,MATCH(F80/1000000000,'Valuation ASP Tables'!$A$18:$A$22)))+(F80/1000000000-INDEX('Valuation ASP Tables'!$A18:$A22,MATCH(F80/1000000000,'Valuation ASP Tables'!$A$18:$A$22)))*INDEX('Valuation ASP Tables'!$B18:$B22,MATCH(F80/1000000000,'Valuation ASP Tables'!$A$18:$A$22)+1))/(F80/1000000000),4) -> $4.00 | G81: =IFERROR((INDEX('Valuation ASP Tables'!$A18:$A22,MATCH(G80/1000000000,'Valuation ASP Tables'!$A$18:$A$22))*(INDEX('Valuation ASP Tables'!$B18:$B22,MATCH(G80/1000000000,'Valuation ASP Tables'!$A$18:$A$22)))+(G80/1000000000-INDEX('Valuation ASP Tables'!$A18:$A22,MATCH(G80/1000000000,'Valuation ASP Tables'!$A$18:$A$22)))*INDEX('Valuation ASP Tables'!$B18:$B22,MATCH(G80/1000000000,'Valuation ASP Tables'!$A$18:$A$22)+1))/(G80/1000000000),4) -> $4.00 | L81: Draws from ASP table, linearly extrapolating ASP between datapoints on the basis of annual miles generated by the Tesla fleet. Could be modified to accommodate price-segmentation (ie lux trips still happening at a higher ASP)
A82: Gross Autonomous Billings | D82: =D81*D80 -> 0 | E82: =E81*E80 -> 0 | F82: =F81*F80 -> 0 | G82: =G81*G80 -> 0 | L82: [Price per mile]*[total robotaxi miles]
A83: Platform cut ex China | C83: =D83 -> 50% | D83: 50% | E83: 50% | F83: 50% | G83: =G32 -> 50% | L83: Input
A84: Platform cut in China | C84: 10% | D84: 10% | E84: 10% | F84: 10% | G84: =G33 -> 10% | L84: Input
A85: Net autonomous sales | C85: =C83*C82*(1-C77)+C82*C84*C77 -> 0 | D85: =D83*D82*(1-D77)+D82*D84*D77 -> 0 | E85: =E83*E82*(1-E77)+E82*E84*E77 -> 0 | F85: =F83*F82*(1-F77)+F82*F84*F77 -> 0 | G85: =G83*G82*(1-G77)+G82*G84*G77 -> 0 | L85: [China platform fee]*[% of fleet in china]*[Gross autonomous billings]+[Typical cut ex China]*[1-% of fleet china]*[Gross autonomous billings]
A86: EBITDA/Net sales (autonomous) | C86: =D86 -> 40% | D86: =E86 -> 40% | E86: =F86 -> 40% | F86: =G86 -> 40% | G86: =G38 -> 40% | L86: Input
A87: EBITDA autonomous | C87: =C86*C85 -> 0 | D87: =D86*D85 -> 0 | E87: =E86*E85 -> 0 | F87: =F86*F85 -> 0 | G87: =G86*G85 -> 0 | L87: [ebitda margin autonomous]*[Net autonomous sales]
A88: FCF/EBITDA | C88: =D88 -> 80% | D88: =E88 -> 80% | E88: =F88 -> 80% | F88: =G88 -> 80% | G88: =(1-$G28) -> 80% | L88: 1 - [tax rate] for simplicity, assumes not a huge amount of autonomous-related depreciation since assets are assumed to be owned by fleet operators
A89: Cash from autonomous | C89: =C88*C87 -> 0 | D89: =D88*D87 -> 0 | E89: =E88*E87 -> 0 | F89: =F88*F87 -> 0 | G89: =G88*G87 -> 0 | L89: [Ebitda autonomous]*[FCF % of ebitda autonomous]
A90: Tesla Consolidated
A91: Total Revenue | B91: =B85+B48 -> 20,821 | C91: =C85+C48 -> 21,358 | D91: 51,302 | E91: 67,670 | F91: 97,643 | G91: =G85+G48 -> 137,906 | L91: [EV revenue]+[Autonomous revenue]
A92: Total EBIT | B92: =B60+B87 -> 883 | C92: =C60+C87 -> 632 | D92: 6,669 | E92: 8,797 | F92: 12,694 | G92: =G60+G87 -> 17,928 | L92: [EBIT EV business]+[EBITDA autonomous], still assuming depreciation is a de minimus factor in the autonomous businesses due to 3rd party fleet ownership model
A93: Total EBITDA | B93: =B92+B64 -> 2,583 | C93: =C92+C64 -> 3,210 | D93: 9,784 | E93: 12,894 | F93: 18,098 | G93: =G92+G64 -> 25,175 | L93: [Total EBIT]+[Depreciation from EV business]
A94: Debt to EBITDA | C94: =C70/C93 -> 4 | D94: =D70/D93 -> 1 | E94: =E70/E93 -> 1.07 | F94: =F70/F93 -> 0.83 | G94: =G70/G93 -> 0.66 | L94: [Long term debt]/[EBITDA], BMW is at ~4. Oil majors around 1.
A95: Interest paid | C95: =C70*$G29 -> 498 | D95: =D70*$G29 -> 517 | E95: =E70*$G29 -> 553 | F95: =F70*$G29 -> 601 | G95: =G70*$G29 -> 668 | L95: [Long term debt]*[Interest rate]
A96: Debt to net PP&E | C96: =C70/C65 -> 82% | D96: =D70/D65 -> 76% | E96: =E70/E65 -> 63% | F96: =F70/F65 -> 53% | G96: =G70/G65 -> 44% | L96: [Long term debt]/[Net pp&E]
A97: Cash generation | C97: =C60+C64-C95-(C60-C95)*($G28)+C89 -> 2,686 | D97: 8,036 | E97: 10,692 | F97: 15,078 | G97: =G60+G64-G95-(G60-G95)*($G28)+G89 -> 21,055 | L97: [After-tax cash from autonomous, line 87]+[Cash from EV] - [Interest paid] expands to ---> [line 87] + [EBITDA EV]-([EBIT EV]-[interest paid])*[Tax rate]-[Interest paid] expands to ---> [line 87] + [EBIT EV] + [Annual Depreciation] - ([EBIT EV] - [Interest paid])*[Tax rate] - Interest paid
A99: Total Gross Margin | B99: =(B85*0.8+B54)/B91 -> 21% | C99: =(C85*0.8+C54)/C91 -> 19% | D99: 29% | E99: 29% | F99: 29% | G99: =(G85*0.8+G54)/G91 -> 29% | L99: Assumes 80% gross margin for autonomous business. ([EV business gross profit]+80%*[Autonomous net revenue])/[Total revenue]
A100: Total EBITDA Margin | B100: =B93/B91 -> 12% | C100: =C93/C91 -> 15% | D100: 19% | E100: 19% | F100: 19% | G100: 18% | L100: [Total Ebitda]/[Total revenue]
A101: EV/EBITDA for EV | G101: =G39 -> 11 | L101: Input
A102: EV/EBITDA for MaaS | G102: =G40 -> 16 | L102: Input
A103: Enterprise Value | B103: =B104+B70-B69 -> 98,121 | G103: =G101*(G60+G64)+G102*G87 -> 276,922 | L103: [EV to ebitda autonomous]*[Autonomous ebitda]+[EV to ebitda EV business]*([EBIT EV]+[Annual depreciation])
A104: Market Cap | B104: =B105*B106 -> 91,021 | G104: =G103-G70+G72+G69 -> 285,889 | L104: [Enterprise value]+[Year-end cash held]+[Working capital]-[Long term debt]
A105: Shares Outstanding | B105: 180 | C105: =D105 -> 192 | D105: 192 | E105: 192 | F105: =G105 -> 192 | G105: =($G18+$G19)/($G17/$B105)+$B105 -> 192 | L105: [Shares outstanding in 2019]+[Total equity capital raised]/[price per share at raise] expands to ---> [shares outstanding 2019]+([Equity issued for capex]+[Equity issued for incentive comp])/([Market cap at raise]/[shares outstanding prior to raise])
A106: Stock Price | B106: 505 | G106: =G104/G105 -> 1,487 | L106: [market cap]/[shares outstanding]
A107: Cash flow yield | G107: =G97/G104 -> 7.4% | L107: This is if Tesla halted incremental capex. [Cash generation]/[Market cap]
A108: CAGR | G108: =(G106/B106)^(1/5)-1 -> 24% | L108: 1-([Modeled 2024 share price]/[B104])^(1/5)

Sheet Valuation ASP Tables
A1: Key:
A2: Blue text indicates assumptions that can be altered, altering one input may require altering another input in order to get reasonable results
A3: Black text indicates cells with formulas or cells with static values that are not meant to be altered
A5: Electric Vehicle ASP Table
A6: Model | B6: ASP | C6: TAM units in segment (000s) | D6: Max units Tesla (000s) | E6: Cumulative units (000s) | F6: ASP at breakpoints
A7: S/X | B7: $95,000 | C7: 540 | D7: =$C7*'Tesla Valuation'!G$26 -> 108 | E7: =SUM(D$7:D7) -> 108 | F7: =SUMPRODUCT(E$7:E7,$B$7:$B7)/SUM(E$7:E7) -> 95,000
A8: Model 3 | B8: $50,000 | C8: 4,400 | D8: =$C8*'Tesla Valuation'!G$26 -> 880 | E8: =SUM(D$7:D8) -> 988 | F8: =SUMPRODUCT(E$7:E8,$B$7:$B8)/SUM(E$7:E8) -> 54,434
A9: Model Y | B9: $53,000 | C9: 6,700 | D9: =$C9*'Tesla Valuation'!G$26 -> 1,340 | E9: =SUM(D$7:D9) -> 2,328 | F9: =SUMPRODUCT(E$7:E9,$B$7:$B9)/SUM(E$7:E9) -> 53,459
A10: Cybertruck | B10: $55,000 | C10: 2,700 | D10: =$C10*'Tesla Valuation'!G$26 -> 540 | E10: =SUM(D$7:D10) -> 2,868 | F10: =SUMPRODUCT(E$7:E10,$B$7:$B10)/SUM(E$7:E10) -> 54,161
A11: Model A (sedan/hatchback/robotaxi) | B11: $27,000 | C11: 40,000 | D11: =$C11*'Tesla Valuation'!G$26 -> 8,000 | E11: =SUM(D$7:D11) -> 10,868 | F11: =SUMPRODUCT(E$7:E11,$B$7:$B11)/SUM(E$7:E11) -> 36,959
A12: Neighborhood EV | B12: $15,000 | C12: spillover | D12: 40,000 | E12: =SUM(D$7:D12) -> 50,868 | F12: =SUMPRODUCT(E$7:E12,$B$7:$B12)/SUM(E$7:E12) -> 20,539
A16: Autonomous ASP table
A17: Annual miles (billion) | B17: ASP (price per mile) | C17: Notes
A18: 1 | B18: $4.00 | C18: Premium to Uber
A19: 30 | B19: $3.00 | C19: ~Uber total miles
A20: 200 | B20: $2.00
A21: 1,000 | B21: $1.00
A22: 15,000 | B22: $0.50 | C22: Global miles = 15 trillion
A23: 45,000 | B23: $0.25

Sheet Monte Carlo Inputs
A1: Excerpt from ARK's Tesla Valuation Model
A2: All variables are modeled as normally distributed with the bear and bull case bracketing one standard deviation below/above the mean. The maximum and minimum inputs bucket all distributions falling outside of the normal range. Actual results could differ materially. Note that the “probability that robotaxis launch” row is the only binary input. When changing variables in this tab it may be necessary to wait to allow the simulation to calculate. Clicking immediately could cut the simulation short and provide inaccurate results. Values are in millions unless otherwise specified except for per share amounts, multiples, and ratios.
A4: Key:
A5: Blue text indicates assumptions that can be altered; altering one input may require altering another input in order to get reasonable results.
A6: Black text indicates cells with formulas or cells with static values that are not meant to be altered.
B8: 2024 Expected Value | C8: =SUMPRODUCT('Monte Carlo Simulations'!P4:P5003,'Monte Carlo Simulations'!R4:R5003) -> $6,832
B10: Minimum | C10: Bear Case | D10: Bull Case | E10: Maximum
A11: Key Drivers
A12: Despite Wright's Law, gross margins never exceed: | B12: 20% | C12: 38% | D12: 63% | E12: 80%
A13: Capital efficiency (gross capex per unit of annual production capacity) (not in millions) | B13: 5,000 | C13: 20,000 | D13: 11,000 | E13: 27,000
A14: Probability that robotaxis launch | B14: 0% | C14: 30% | E14: 100% | F14: Binary
A15: In the event that robotaxis launch, percent of capable Teslas in autonomous fleet in 2024 | B15: 5% | C15: 45% | D15: 75% | E15: 90%
A16: Percent of factory-build that will be debt funded | B16: 0% | C16: 40% | D16: 80% | E16: 95%
A17: Equity Raise Assumptions
A18: Weighted average market capitalization at which equity is raised | B18: 50,000 | C18: 175,000 | D18: 225,000 | E18: 400,000
A19: Equity raise for capex | B19: 2,000 | C19: 0 | D19: 4,000 | E19: 10,000
A20: Equity raise for incentive compensation | B20: 3,000 | C20: 3,000 | D20: 3,000 | E20: 3,000
A21: Margin Assumptions
A22: Wright's Law learning rate | B22: 10% | C22: 14% | D22: 17% | E22: 20%
A23: Max annual production increase (given management bandwidth constraints) | B23: 20% | C23: 90% | D23: 110% | E23: 500%
A24: Factory utilization | B24: 70% | C24: 93% | D24: 99% | E24: 100%
A25: 2020 Factory utilization (due to coronavirus) | B25: 50% | C25: 70% | D25: 90% | E25: 95%
A26: Percent of each model/price segment that Tesla penetrates | B26: 10% | C26: 18% | D26: 23% | E26: 70%
A27: 2020 ASP realized (due to coronavirus) | B27: 60% | C27: 80% | D27: 95% | E27: 100%
A28: Tax rate | B28: 15% | C28: 20% | D28: 20% | E28: 25%
A29: Interest rate | B29: 2% | C29: 4% | D29: 5% | E29: 7%
A30: Autonomous Assumptions
A31: Miles traveled per robotaxi (not in millions) | B31: 30,000 | C31: 90,000 | D31: 130,000 | E31: 160,000
A32: Tesla platform cut | B32: 20% | C32: 38% | D32: 53% | E32: 70%
A33: Tesla platform cut in China | B33: 5% | C33: 13% | D33: 28% | E33: 35%
A34: Percent of fleet in China | B34: 15% | C34: 30% | D34: 40% | E34: 50%
A35: Valuation Assumptions
A36: SG&A as % of electric vehicle sales | B36: 8% | C36: 11% | D36: 9% | E36: 12%
A37: R&D as % of electric vehicle sales | B37: 3% | C37: 6% | D37: 6% | E37: 9%
A38: Autonomous EBITDA margin | B38: 20% | C38: 30% | D38: 50% | E38: 80%
A39: EV/EBITDA electric vehicle business | B39: 11 | C39: 11 | D39: 11 | E39: 11
A40: EV/EBITDA autonomous robotaxi business | B40: 16 | C40: 16 | D40: 16 | E40: 16

Sheet Monte Carlo ASP Tables
A1: Key:
A2: Blue text indicates assumptions that can be altered, altering one input may require altering another input in order to get reasonable results
A3: Black text indicates cells with formulas or cells with static values that are not meant to be altered
A5: Electric Vehicle ASP Table
A6: Model | B6: ASP | C6: TAM units in segment (000s) | D6: Max units Tesla (000s) | E6: Cumulative units (000s) | F6: ASP at breakpoints
A7: S/X | B7: $95,000 | C7: 540 | D7: =$C7*'Monte Carlo Valuation'!G$26 -> 86 | E7: =SUM(D$7:D7) -> 86 | F7: =SUMPRODUCT(E$7:E7,$B$7:$B7)/SUM(E$7:E7) -> 95,000
A8: Model 3 | B8: $50,000 | C8: 4,400 | D8: =$C8*'Monte Carlo Valuation'!G$26 -> 700 | E8: =SUM(D$7:D8) -> 786 | F8: =SUMPRODUCT(E$7:E8,$B$7:$B8)/SUM(E$7:E8) -> 54,434
A9: Model Y | B9: $53,000 | C9: 6,700 | D9: =$C9*'Monte Carlo Valuation'!G$26 -> 1,066 | E9: =SUM(D$7:D9) -> 1,852 | F9: =SUMPRODUCT(E$7:E9,$B$7:$B9)/SUM(E$7:E9) -> 53,459
A10: Cybertruck | B10: $55,000 | C10: 2,700 | D10: =$C10*'Monte Carlo Valuation'!G$26 -> 430 | E10: =SUM(D$7:D10) -> 2,282 | F10: =SUMPRODUCT(E$7:E10,$B$7:$B10)/SUM(E$7:E10) -> 54,161
A11: Model A (sedan/hatchback/robotaxi) | B11: $27,000 | C11: 40,000 | D11: =$C11*'Monte Carlo Valuation'!G$26 -> 6,364 | E11: =SUM(D$7:D11) -> 8,646 | F11: =SUMPRODUCT(E$7:E11,$B$7:$B11)/SUM(E$7:E11) -> 36,959
A12: Neighborhood EV | B12: $15,000 | C12: 100,000 | D12: 40,000 | E12: =SUM(D$7:D12) -> 48,646 | F12: =SUMPRODUCT(E$7:E12,$B$7:$B12)/SUM(E$7:E12) -> 19,812
A16: Autonomous ASP table
A17: Annual miles (billion) | B17: ASP (price per mile) | C17: Notes
A18: 1 | B18: $4.00 | C18: Premium to Uber
A19: 30 | B19: $3.00 | C19: ~Uber total miles in 2025
A20: 200 | B20: $2.00
A21: 600 | B21: $1.00
A22: 10,000 | B22: $0.50 | C22: Global miles = 15 trillion
A23: 45,000 | B23: $0.25

Sheet Monte Carlo Valuation
A1: Excerpt from ARK's Tesla Valuation Model
A2: Everything in millions unless otherwise specified and for per share amounts and ratios.
S3: 2024 Price Target | T3: =G106 -> $4,628
A4: Key:
A5: Blue text indicates assumptions that can be altered, altering one input may require altering another input in order to get reasonable results
A6: Black text indicates cells with formulas or cells with static values that are not meant to be altered | S6: ARK's Bear Case Inputs | T6: ARK's Bull Case Inputs
S7: 30% | T7: 25%
S8: $16,000 | T8: $16,000
A9: Values are in millions unless otherwise specified except for per share amounts, multiples, and ratios.
B10: 2019 | C10: 2020 | D10: 2021 | E10: 2022 | F10: 2023 | G10: 2024 | I10: Notes | M10: Random Number Generator | N10: Median
A11: Key drivers
A12: Despite Wright's Law gross margin never exceeds… | G12: =IF(N12='Monte Carlo Inputs'!D12,N12,IF(_xlfn.NORM.INV(M12,N12,('Monte Carlo Inputs'!D12-N12))<'Monte Carlo Inputs'!B12,'Monte Carlo Inputs'!B12,IF(_xlfn.NORM.INV(M12,N12,('Monte Carlo Inputs'!D12-N12))>'Monte Carlo Inputs'!E12,'Monte Carlo Inputs'!E12,_xlfn.NORM.INV(M12,N12,('Monte Carlo Inputs'!D12-N12))))) -> 64% | I12: Gross margin is driven by Wright's Law. This input is the max gross margin. Gross margin could level out at a certain level based on competition. | M12: =RAND() -> 0.8603710095 | N12: =('Monte Carlo Inputs'!D12-'Monte Carlo Inputs'!C12)/2+'Monte Carlo Inputs'!C12 -> 50%
A13: Capital efficiency (gross capex per unit production) | G13: =IF(N13='Monte Carlo Inputs'!C13,N13,IF(_xlfn.NORM.INV(M13,N13,('Monte Carlo Inputs'!C13-N13))<'Monte Carlo Inputs'!B13,'Monte Carlo Inputs'!B13,IF(_xlfn.NORM.INV(M13,N13,('Monte Carlo Inputs'!C13-N13))>'Monte Carlo Inputs'!E13,'Monte Carlo Inputs'!E13,_xlfn.NORM.INV(M13,N13,('Monte Carlo Inputs'!C13-N13))))) -> $7,945 | I13: The cost per unit of new production capacity. | M13: =RAND() -> 0.04658136475 | N13: =('Monte Carlo Inputs'!C13-'Monte Carlo Inputs'!D13)/2+'Monte Carlo Inputs'!D13 -> $15,500
A14: Percent of all Teslas in autonomous fleet in 2024 | G14: =G15*IF(N14='Monte Carlo Inputs'!D15,N14,IF(_xlfn.NORM.INV(M14,N14,('Monte Carlo Inputs'!D15-N14))<'Monte Carlo Inputs'!B15,'Monte Carlo Inputs'!B15,IF(_xlfn.NORM.INV(M14,N14,('Monte Carlo Inputs'!D15-N14))>'Monte Carlo Inputs'!E15,'Monte Carlo Inputs'!E15,_xlfn.NORM.INV(M14,N14,('Monte Carlo Inputs'!D15-N14))))) -> 0% | M14: =RAND() -> 0.5130965733 | N14: =('Monte Carlo Inputs'!D15-'Monte Carlo Inputs'!C15)/2+'Monte Carlo Inputs'!C15 -> 60%
A15: Robotaxi works | G15: =IF(M15<'Monte Carlo Inputs'!C14,1,0) -> 0% | M15: =RAND() -> 0.4368646769
A16: Percent of factory-build debt-funded | G16: =IF(_xlfn.NORM.INV(M16,N16,('Monte Carlo Inputs'!D16-N16))<'Monte Carlo Inputs'!B16,'Monte Carlo Inputs'!B16,IF(_xlfn.NORM.INV(M16,N16,('Monte Carlo Inputs'!D16-N16))>'Monte Carlo Inputs'!E16,'Monte Carlo Inputs'!E16,_xlfn.NORM.INV(M16,N16,('Monte Carlo Inputs'!D16-N16)))) -> 70% | M16: =RAND() -> 0.6981675801 | N16: =('Monte Carlo Inputs'!D16-'Monte Carlo Inputs'!C16)/2+'Monte Carlo Inputs'!C16 -> 60%
A17: Balance sheet assumptions
A18: Weighted average market cap at which equity raised | G18: =IF(N18='Monte Carlo Inputs'!D18,N18,IF(_xlfn.NORM.INV(M18,N18,('Monte Carlo Inputs'!D18-N18))<'Monte Carlo Inputs'!B18,'Monte Carlo Inputs'!B18,IF(_xlfn.NORM.INV(M18,N18,('Monte Carlo Inputs'!D18-N18))>'Monte Carlo Inputs'!E18,'Monte Carlo Inputs'!E18,_xlfn.NORM.INV(M18,N18,('Monte Carlo Inputs'!D18-N18))))) -> 199,643 | M18: =RAND() -> 0.494299312 | N18: =('Monte Carlo Inputs'!D18-'Monte Carlo Inputs'!C18)/2+'Monte Carlo Inputs'!C18 -> 200,000
A19: Equity raise for capex | G19: =IF(N19='Monte Carlo Inputs'!D19,N19,IF(_xlfn.NORM.INV(M19,N19,('Monte Carlo Inputs'!D19-N19))<'Monte Carlo Inputs'!B19,'Monte Carlo Inputs'!B19,IF(_xlfn.NORM.INV(M19,N19,('Monte Carlo Inputs'!D19-N19))>'Monte Carlo Inputs'!E19,'Monte Carlo Inputs'!E19,_xlfn.NORM.INV(M19,N19,('Monte Carlo Inputs'!D19-N19))))) -> 4,861 | M19: =RAND() -> 0.9236823217 | N19: =('Monte Carlo Inputs'!D19-'Monte Carlo Inputs'!C19)/2+'Monte Carlo Inputs'!C19 -> 2000000000
A20: Equity raise for incentive compensation | G20: =IF(N20='Monte Carlo Inputs'!D20,N20,IF(_xlfn.NORM.INV(M20,N20,('Monte Carlo Inputs'!D20-N20))<'Monte Carlo Inputs'!B20,'Monte Carlo Inputs'!B20,IF(_xlfn.NORM.INV(M20,N20,('Monte Carlo Inputs'!D20-N20))>'Monte Carlo Inputs'!E20,'Monte Carlo Inputs'!E20,_xlfn.NORM.INV(M20,N20,('Monte Carlo Inputs'!D20-N20))))) -> 3,000 | M20: =RAND() -> 0.8121657713 | N20: =('Monte Carlo Inputs'!D20-'Monte Carlo Inputs'!C20)/2+'Monte Carlo Inputs'!C20 -> 3,000
A21: Margin assumptions
A22: Wright's Law learning rate | G22: =IF(N22='Monte Carlo Inputs'!D22,N22,IF(_xlfn.NORM.INV(M22,N22,('Monte Carlo Inputs'!D22-N22))<'Monte Carlo Inputs'!B22,'Monte Carlo Inputs'!B22,IF(_xlfn.NORM.INV(M22,N22,('Monte Carlo Inputs'!D22-N22))>'Monte Carlo Inputs'!E22,'Monte Carlo Inputs'!E22,_xlfn.NORM.INV(M22,N22,('Monte Carlo Inputs'!D22-N22))))) -> 15% | I22: The percent cost decline for every cumulative doubling of production. | M22: =RAND() -> 0.4168135699 | N22: =('Monte Carlo Inputs'!D22-'Monte Carlo Inputs'!C22)/2+'Monte Carlo Inputs'!C22 -> 15%
A23: Max annual production increase | G23: =IF(N23='Monte Carlo Inputs'!D23,N23,IF(_xlfn.NORM.INV(M23,N23,('Monte Carlo Inputs'!D23-N23))<'Monte Carlo Inputs'!B23,'Monte Carlo Inputs'!B23,IF(_xlfn.NORM.INV(M23,N23,('Monte Carlo Inputs'!D23-N23))>'Monte Carlo Inputs'!E23,'Monte Carlo Inputs'!E23,_xlfn.NORM.INV(M23,N23,('Monte Carlo Inputs'!D23-N23))))) -> 111% | I23: Provides an upper bound for vehicle production. | M23: 0.8535604178 | N23: =('Monte Carlo Inputs'!D23-'Monte Carlo Inputs'!C23)/2+'Monte Carlo Inputs'!C23 -> 100%
A24: Factory utilization | G24: =IF(N24='Monte Carlo Inputs'!D24,N24,IF(_xlfn.NORM.INV(M24,N24,('Monte Carlo Inputs'!D24-N24))<'Monte Carlo Inputs'!B24,'Monte Carlo Inputs'!B24,IF(_xlfn.NORM.INV(M24,N24,('Monte Carlo Inputs'!D24-N24))>'Monte Carlo Inputs'!E24,'Monte Carlo Inputs'!E24,_xlfn.NORM.INV(M24,N24,('Monte Carlo Inputs'!D24-N24))))) -> 100% | M24: 0.9065962913 | N24: =('Monte Carlo Inputs'!D24-'Monte Carlo Inputs'!C24)/2+'Monte Carlo Inputs'!C24 -> 96%
A25: 2020 Factory utilization (due to coronavirus) | G25: =IF(N25='Monte Carlo Inputs'!D25,N25,IF(_xlfn.NORM.INV(M25,N25,('Monte Carlo Inputs'!D25-N25))<'Monte Carlo Inputs'!B25,'Monte Carlo Inputs'!B25,IF(_xlfn.NORM.INV(M25,N25,('Monte Carlo Inputs'!D25-N25))>'Monte Carlo Inputs'!E25,'Monte Carlo Inputs'!E25,_xlfn.NORM.INV(M25,N25,('Monte Carlo Inputs'!D25-N25))))) -> 75% | M25: 0.2922311423 | N25: =('Monte Carlo Inputs'!D25-'Monte Carlo Inputs'!C25)/2+'Monte Carlo Inputs'!C25 -> 80%
A26: Percent of each model/price segment that Tesla penetrates | G26: =IF(N26='Monte Carlo Inputs'!D26,N26,IF(_xlfn.NORM.INV(M26,N26,('Monte Carlo Inputs'!D26-N26))<'Monte Carlo Inputs'!B26,'Monte Carlo Inputs'!B26,IF(_xlfn.NORM.INV(M26,N26,('Monte Carlo Inputs'!D26-N26))>'Monte Carlo Inputs'!E26,'Monte Carlo Inputs'!E26,_xlfn.NORM.INV(M26,N26,('Monte Carlo Inputs'!D26-N26))))) -> 16% | I26: See ASP Tables tab. Provides an upper bound for addressable market within each vehicle segment. | M26: 0.0509436213 | N26: =('Monte Carlo Inputs'!D26-'Monte Carlo Inputs'!C26)/2+'Monte Carlo Inputs'!C26 -> 20%
A27: 2020 ASP relative to normal | G27: =IF(N27='Monte Carlo Inputs'!D27,N27,IF(_xlfn.NORM.INV(M27,N27,('Monte Carlo Inputs'!D27-N27))<'Monte Carlo Inputs'!B27,'Monte Carlo Inputs'!B27,IF(_xlfn.NORM.INV(M27,N27,('Monte Carlo Inputs'!D27-N27))>'Monte Carlo Inputs'!E27,'Monte Carlo Inputs'!E27,_xlfn.NORM.INV(M27,N27,('Monte Carlo Inputs'!D27-N27))))) -> 81% | M27: 0.2035406125 | N27: =('Monte Carlo Inputs'!D27-'Monte Carlo Inputs'!C27)/2+'Monte Carlo Inputs'!C27 -> 88%
A28: Tax rate | G28: =IF(N28='Monte Carlo Inputs'!D28,N28,IF(_xlfn.NORM.INV(M28,N28,('Monte Carlo Inputs'!D28-N28))<'Monte Carlo Inputs'!B28,'Monte Carlo Inputs'!B28,IF(_xlfn.NORM.INV(M28,N28,('Monte Carlo Inputs'!D28-N28))>'Monte Carlo Inputs'!E28,'Monte Carlo Inputs'!E28,_xlfn.NORM.INV(M28,N28,('Monte Carlo Inputs'!D28-N28))))) -> 20% | M28: 0.1696984242 | N28: =('Monte Carlo Inputs'!D28-'Monte Carlo Inputs'!C28)/2+'Monte Carlo Inputs'!C28 -> 20%
A29: Interest rate | G29: =IF(N29='Monte Carlo Inputs'!D29,N29,IF(_xlfn.NORM.INV(M29,N29,('Monte Carlo Inputs'!D29-N29))<'Monte Carlo Inputs'!B29,'Monte Carlo Inputs'!B29,IF(_xlfn.NORM.INV(M29,N29,('Monte Carlo Inputs'!D29-N29))>'Monte Carlo Inputs'!E29,'Monte Carlo Inputs'!E29,_xlfn.NORM.INV(M29,N29,('Monte Carlo Inputs'!D29-N29))))) -> 3% | M29: 0.08982896621 | N29: =('Monte Carlo Inputs'!D29-'Monte Carlo Inputs'!C29)/2+'Monte Carlo Inputs'!C29 -> 4%
A30: Autonomous assumptions
A31: Miles traveled per robotaxi (not in millions) | G31: =IF(N31='Monte Carlo Inputs'!D31,N31,IF(_xlfn.NORM.INV(M31,N31,('Monte Carlo Inputs'!D31-N31))<'Monte Carlo Inputs'!B31,'Monte Carlo Inputs'!B31,IF(_xlfn.NORM.INV(M31,N31,('Monte Carlo Inputs'!D31-N31))>'Monte Carlo Inputs'!E31,'Monte Carlo Inputs'!E31,_xlfn.NORM.INV(M31,N31,('Monte Carlo Inputs'!D31-N31))))) -> 113,623 | M31: =RAND() -> 0.5718697129 | N31: =('Monte Carlo Inputs'!D31-'Monte Carlo Inputs'!C31)/2+'Monte Carlo Inputs'!C31 -> 110,000
A32: Tesla platform fee | G32: =IF(N32='Monte Carlo Inputs'!D32,N32,IF(_xlfn.NORM.INV(M32,N32,('Monte Carlo Inputs'!D32-N32))<'Monte Carlo Inputs'!B32,'Monte Carlo Inputs'!B32,IF(_xlfn.NORM.INV(M32,N32,('Monte Carlo Inputs'!D32-N32))>'Monte Carlo Inputs'!E32,'Monte Carlo Inputs'!E32,_xlfn.NORM.INV(M32,N32,('Monte Carlo Inputs'!D32-N32))))) -> 42% | I32: Uber is at roughly 23%. Tesla has said 30%. We believe autonomous platforms will be able to command a fee on the high end because they will offer more value. As of Feb 2020. | J32: https://ark-invest.com/research/autonomous-ridehailing-fees | M32: =RAND() -> 0.3333833123 | N32: =('Monte Carlo Inputs'!D32-'Monte Carlo Inputs'!C32)/2+'Monte Carlo Inputs'!C32 -> 45%
A33: Tesla platform fee China | G33: =IF(N33='Monte Carlo Inputs'!D33,N33,IF(_xlfn.NORM.INV(M33,N33,('Monte Carlo Inputs'!D33-N33))<'Monte Carlo Inputs'!B33,'Monte Carlo Inputs'!B33,IF(_xlfn.NORM.INV(M33,N33,('Monte Carlo Inputs'!D33-N33))>'Monte Carlo Inputs'!E33,'Monte Carlo Inputs'!E33,_xlfn.NORM.INV(M33,N33,('Monte Carlo Inputs'!D33-N33))))) -> 31% | I33: Assumes that Chinese partners capture some of the China monetization. | M33: =RAND() -> 0.9215089785 | N33: =('Monte Carlo Inputs'!D33-'Monte Carlo Inputs'!C33)/2+'Monte Carlo Inputs'!C33 -> 20%
A34: % of fleet in China | G34: =IF(N34='Monte Carlo Inputs'!D34,N34,IF(_xlfn.NORM.INV(M34,N34,('Monte Carlo Inputs'!D34-N34))<'Monte Carlo Inputs'!B34,'Monte Carlo Inputs'!B34,IF(_xlfn.NORM.INV(M34,N34,('Monte Carlo Inputs'!D34-N34))>'Monte Carlo Inputs'!E34,'Monte Carlo Inputs'!E34,_xlfn.NORM.INV(M34,N34,('Monte Carlo Inputs'!D34-N34))))) -> 39% | M34: =RAND() -> 0.7733795445 | N34: =('Monte Carlo Inputs'!D34-'Monte Carlo Inputs'!C34)/2+'Monte Carlo Inputs'!C34 -> 35%
A35: Valuation assumptions
A36: SG&A as % of electric vehicle sales | G36: =IF(N36='Monte Carlo Inputs'!C36,N36,IF(_xlfn.NORM.INV(M36,N36,('Monte Carlo Inputs'!C36-N36))<'Monte Carlo Inputs'!B36,'Monte Carlo Inputs'!B36,IF(_xlfn.NORM.INV(M36,N36,('Monte Carlo Inputs'!C36-N36))>'Monte Carlo Inputs'!E36,'Monte Carlo Inputs'!E36,_xlfn.NORM.INV(M36,N36,('Monte Carlo Inputs'!C36-N36))))) -> 10% | M36: =RAND() -> 0.6255762383 | N36: =('Monte Carlo Inputs'!C36-'Monte Carlo Inputs'!D36)/2+'Monte Carlo Inputs'!D36 -> 10%
A37: R&D as % of electric vehicle sales | G37: =IF(N37='Monte Carlo Inputs'!C37,N37,IF(_xlfn.NORM.INV(M37,N37,('Monte Carlo Inputs'!C37-N37))<'Monte Carlo Inputs'!B37,'Monte Carlo Inputs'!B37,IF(_xlfn.NORM.INV(M37,N37,('Monte Carlo Inputs'!C37-N37))>'Monte Carlo Inputs'!E37,'Monte Carlo Inputs'!E37,_xlfn.NORM.INV(M37,N37,('Monte Carlo Inputs'!C37-N37))))) -> 6% | M37: =RAND() -> 0.6019542208 | N37: =('Monte Carlo Inputs'!C37-'Monte Carlo Inputs'!D37)/2+'Monte Carlo Inputs'!D37 -> 6%
A38: Autonomous EBITDA margin | G38: =IF(N38='Monte Carlo Inputs'!D38,N38,IF(_xlfn.NORM.INV(M38,N38,('Monte Carlo Inputs'!D38-N38))<'Monte Carlo Inputs'!B38,'Monte Carlo Inputs'!B38,IF(_xlfn.NORM.INV(M38,N38,('Monte Carlo Inputs'!D38-N38))>'Monte Carlo Inputs'!E38,'Monte Carlo Inputs'!E38,_xlfn.NORM.INV(M38,N38,('Monte Carlo Inputs'!D38-N38))))) -> 51% | M38: =RAND() -> 0.8718120581 | N38: =('Monte Carlo Inputs'!D38-'Monte Carlo Inputs'!C38)/2+'Monte Carlo Inputs'!C38 -> 40%
A39: EV/EBITDA electric vehicle business | G39: =IF(N39='Monte Carlo Inputs'!D39,N39,IF(_xlfn.NORM.INV(M39,N39,('Monte Carlo Inputs'!D39-N39))<'Monte Carlo Inputs'!B39,'Monte Carlo Inputs'!B39,IF(_xlfn.NORM.INV(M39,N39,('Monte Carlo Inputs'!D39-N39))>'Monte Carlo Inputs'!E39,'Monte Carlo Inputs'!E39,_xlfn.NORM.INV(M39,N39,('Monte Carlo Inputs'!D39-N39))))) -> 11 | M39: =RAND() -> 0.5237463018 | N39: =('Monte Carlo Inputs'!D39-'Monte Carlo Inputs'!C39)/2+'Monte Carlo Inputs'!C39 -> 11
A40: EV/EBITDA autonomous robotaxi business | G40: =IF(N40='Monte Carlo Inputs'!D40,N40,IF(_xlfn.NORM.INV(M40,N40,('Monte Carlo Inputs'!D40-N40))<'Monte Carlo Inputs'!B40,'Monte Carlo Inputs'!B40,IF(_xlfn.NORM.INV(M40,N40,('Monte Carlo Inputs'!D40-N40))>'Monte Carlo Inputs'!E40,'Monte Carlo Inputs'!E40,_xlfn.NORM.INV(M40,N40,('Monte Carlo Inputs'!D40-N40))))) -> 16 | M40: =RAND() -> 0.1336905004 | N40: =('Monte Carlo Inputs'!D40-'Monte Carlo Inputs'!C40)/2+'Monte Carlo Inputs'!C40 -> 16
A41: Electric Vehicle Business
A42: Cars Produceable (units, not in millions) | B42: 362,749 | C42: =(2000000000)/$G13+B42 -> 614,488 | D42: =(C62-B62)/$G13+C42 -> 1,293,609 | E42: =(D62-C62)/$G13+D42 -> 2,723,284 | F42: =(E62-D62)/$G13+E42 -> 5,733,010 | G42: =(F62-E62)/$G13+F42 -> 12,069,033 | I42: ARK estimates 37 million EVs sold globally in 2024.
A43: Cars sold (not in millions) | C43: =C42*$G25 -> 457,985 | D43: =D42*$G24 -> 1,293,609 | E43: =E42*$G24 -> 2,723,284 | F43: =F42*$G24 -> 5,733,010 | G43: =G42*$G24 -> 12,069,033
A45: Cumulative cars sold (not in millions) | B45: 800,000 | C45: =B45+C43 -> 1,257,985 | D45: =C45+D43 -> 2,551,595 | E45: =D45+E43 -> 5,274,878 | F45: =E45+F43 -> 11,007,888 | G45: =F45+G43 -> 23,076,922
A47: ASP (not in millions) | B47: =B48/B42 -> 57,398 | C47: =G27*(INDEX('Monte Carlo ASP Tables'!$F7:$F12,MATCH(C42/1000,'Monte Carlo ASP Tables'!$E$7:$E$12))*(INDEX('Monte Carlo ASP Tables'!$E7:$E12,MATCH(C42/1000,'Monte Carlo ASP Tables'!$E$7:$E$12)))+(C42/1000-INDEX('Monte Carlo ASP Tables'!$E7:$E12,MATCH(C42/1000,'Monte Carlo ASP Tables'!$E$7:$E$12)))*INDEX('Monte Carlo ASP Tables'!$B7:$B12,MATCH(C42/1000,'Monte Carlo ASP Tables'!$E$7:$E$12)+1))/(C42/1000) -> 45,755 | D47: =(INDEX('Monte Carlo ASP Tables'!$F7:$F12,MATCH(D42/1000,'Monte Carlo ASP Tables'!$E$7:$E$12))*(INDEX('Monte Carlo ASP Tables'!$E7:$E12,MATCH(D42/1000,'Monte Carlo ASP Tables'!$E$7:$E$12)))+(D42/1000-INDEX('Monte Carlo ASP Tables'!$E7:$E12,MATCH(D42/1000,'Monte Carlo ASP Tables'!$E$7:$E$12)))*INDEX('Monte Carlo ASP Tables'!$B7:$B12,MATCH(D42/1000,'Monte Carlo ASP Tables'!$E$7:$E$12)+1))/(D42/1000) -> 53,871 | E47: =(INDEX('Monte Carlo ASP Tables'!$F7:$F12,MATCH(E42/1000,'Monte Carlo ASP Tables'!$E$7:$E$12))*(INDEX('Monte Carlo ASP Tables'!$E7:$E12,MATCH(E42/1000,'Monte Carlo ASP Tables'!$E$7:$E$12)))+(E42/1000-INDEX('Monte Carlo ASP Tables'!$E7:$E12,MATCH(E42/1000,'Monte Carlo ASP Tables'!$E$7:$E$12)))*INDEX('Monte Carlo ASP Tables'!$B7:$B12,MATCH(E42/1000,'Monte Carlo ASP Tables'!$E$7:$E$12)+1))/(E42/1000) -> 49,756 | F47: =(INDEX('Monte Carlo ASP Tables'!$F7:$F12,MATCH(F42/1000,'Monte Carlo ASP Tables'!$E$7:$E$12))*(INDEX('Monte Carlo ASP Tables'!$E7:$E12,MATCH(F42/1000,'Monte Carlo ASP Tables'!$E$7:$E$12)))+(F42/1000-INDEX('Monte Carlo ASP Tables'!$E7:$E12,MATCH(F42/1000,'Monte Carlo ASP Tables'!$E$7:$E$12)))*INDEX('Monte Carlo ASP Tables'!$B7:$B12,MATCH(F42/1000,'Monte Carlo ASP Tables'!$E$7:$E$12)+1))/(F42/1000) -> 37,809 | G47: =(INDEX('Monte Carlo ASP Tables'!$F7:$F12,MATCH(G42/1000,'Monte Carlo ASP Tables'!$E$7:$E$12))*(INDEX('Monte Carlo ASP Tables'!$E7:$E12,MATCH(G42/1000,'Monte Carlo ASP Tables'!$E$7:$E$12)))+(G42/1000-INDEX('Monte Carlo ASP Tables'!$E7:$E12,MATCH(G42/1000,'Monte Carlo ASP Tables'!$E$7:$E$12)))*INDEX('Monte Carlo ASP Tables'!$B7:$B12,MATCH(G42/1000,'Monte Carlo ASP Tables'!$E$7:$E$12)+1))/(G42/1000) -> 30,731
A48: Revenue | B48: 20,821 | C48: =C43*C47 -> 20,955 | D48: =D43*D47 -> 69,689 | E48: =E43*E47 -> 135,500 | F48: =F43*F47 -> 216,762 | G48: =G43*G47 -> 370,890
A50: Part and labor and other cost per vehicle (not in millions) | B50: =B47*(1-B53)-B51 -> 40,794 | C50: =$B50*(C45/$B$45)^((LN(1-$G22)/LN(2))) -> 36,775 | D50: =$B50*(D45/$B$45)^((LN(1-$G22)/LN(2))) -> 31,274 | E50: =$B50*(E45/$B$45)^((LN(1-$G22)/LN(2))) -> 26,480 | F50: =$B50*(F45/$B$45)^((LN(1-$G22)/LN(2))) -> 22,372 | G50: =$B50*(G45/$B$45)^((LN(1-$G22)/LN(2))) -> 18,882 | I50: Teardowns of the Model 3 have suggested $25k for labor and materials.
A51: Capital consumed per vehicle (not in millions) | B51: =B64/B42*24000/(1500+24000) -> 4,411 | C51: =C64/C43 -> 5,139 | D51: =D64/D43 -> 2,785 | E51: 2,289 | F51: 2,053 | G51: 1,941
A52: Total COGs per vehicle (not in millions) | B52: =MAX(SUM(B51,B50),(1-$G12)*B47) -> 45,205 | C52: 41,914 | D52: 34,059 | E52: 28,769 | F52: 24,425 | G52: 20,823
A53: Gross Margin | B53: =B54/B48 -> 21% | C53: =(1-C52/C47) -> 8% | D53: =(1-D52/D47) -> 37% | E53: =(1-E52/E47) -> 42% | F53: =(1-F52/F47) -> 35% | G53: =1-(G52)/G47 -> 32%
A54: Gross Profit | B54: =B48-16398000000 -> 4,423 | C54: =C53*C48 -> 1,759 | D54: =D53*D48 -> 25,630 | E54: =E53*E48 -> 57,155 | F54: =F53*F48 -> 76,732 | G54: =G53*G48 -> 119,575
A55: SG&A | B55: =B56*B48 -> 2,290 | C55: 2,163 | D55: 7,192 | E55: 13,984 | F55: 22,370 | G55: 38,276
A56: SG&A/Sales | B56: 11% | C56: =$G56 -> 10% | D56: =$G56 -> 10% | E56: =$G56 -> 10% | F56: =$G56 -> 10% | G56: =G36 -> 10%
A57: R&D | B57: =B58*B48 -> 1,249 | C57: 1,257 | D57: 4,181 | E57: 8,130 | F57: 13,006 | G57: 22,253
A58: R&D/Sales | B58: 6% | C58: =$G58 -> 6% | D58: =$G58 -> 6% | E58: =$G58 -> 6% | F58: =$G58 -> 6% | G58: =G37 -> 6%
A60: EBIT | B60: =B54-B55-B57 -> 883 | C60: -1,661 | D60: 14,256 | E60: 35,041 | F60: 41,356 | G60: 59,045
A61: EBIT margin | G61: =G60/G48 -> 16%
A62: Gross property, plant and equipment | B62: 16,000 | C62: =B62+IF(B72<0,0,MIN((B72),B73))/(1-$G16) -> 21,395 | D62: =C62+IF(C72<0,0,MIN((C72),C73))/(1-$G16) -> 32,754 | E62: =D62+IF(D72<0,0,MIN((D72),D73))/(1-$G16) -> 56,665 | F62: =E62+IF(E72<0,0,MIN((E72),E73))/(1-$G16) -> 107,003 | G62: =F62+IF(F72<0,0,MIN((F72),F73))/(1-$G16) -> 212,974
A63: Accumulated depreciation | B63: =B65-B62 -> -5,600 | C63: =B63-C64 -> -7,953 | D63: =C63-D64 -> -11,556 | E63: =D63-E64 -> -17,790 | F63: =E63-F64 -> -29,560 | G63: =F63-G64 -> -52,987
A64: Annual depreciation | B64: 1,700 | C64: =C62*C67 -> 2,353 | D64: =D62*D67 -> 3,603 | E64: =E62*E67 -> 6,233 | F64: =F62*F67 -> 11,770 | G64: =G62*G67 -> 23,427
A65: Net property, plant and equipment | B65: 10,400 | C65: =C62+C63 -> 13,442 | D65: =D62+D63 -> 21,197 | E65: =E62+E63 -> 38,876 | F65: =F62+F63 -> 77,443 | G65: =G62+G63 -> 159,987
A67: Depreciation/Gross PP&E | B67: 11% | C67: =$G67 -> 11% | D67: =$G67 -> 11% | E67: =$G67 -> 11% | F67: =$G67 -> 11% | G67: 11%
A68: Working capital days (not in millions) | B68: =B69/B48*365 -> 81 | C68: 80 | D68: 24 | E68: 12 | F68: 8 | G68: 5
A69: Working capital | B69: =4600000000 -> 4,600 | C69: =B69 -> 4,600 | D69: =C69 -> 4,600 | E69: =D69 -> 4,600 | F69: =E69 -> 4,600 | G69: 4,600
A70: Total long term debt | B70: 11,700 | C70: =B70+(C62-B62)*$G16 -> 15,497 | D70: =C70+(D62-C62)*$G16 -> 23,492 | E70: =D70+(E62-D62)*$G16 -> 40,321 | F70: =E70+(F62-E62)*$G16 -> 75,751 | G70: =F70+(G62-F62)*$G16 -> 150,336
A71: Average interest paid (%) | C71: =D71 -> 3% | D71: =E71 -> 3% | E71: =F71 -> 3% | F71: =G71 -> 3% | G71: =G29 -> 3.3%
A72: Year end cash for investment (includes anticipated equity raise) | B72: =6000000000-B69+G19 -> 6,261 | C72: =B69-C69+C97+B74 -> 5,275 | D72: =C69-D69+D97+C74 -> 16,293 | E72: =D69-E69+E97+D74 -> 42,403 | F72: =E69-F69+F97+E74 -> 70,332 | G72: =F69-G69+G97+F74 -> 105,605
A73: Max cash deployable given scaling constraint | B73: =(C42*$G23)*$G13*(1-$G16) -> 1,598 | C73: 3,364 | D73: 7,082 | E73: 14,909 | F73: 31,386 | G73: 0
A74: Spillover cash not deployed | B74: =IF(B72-B73>0,B72-B73,0) -> 4,663 | C74: =IF(C72-C73>0,C72-C73,IF(C72<0,C72,0)) -> 1,911 | D74: =IF(D72-D73>0,D72-D73,IF(D72<0,D72,0)) -> 9,211 | E74: =IF(E72-E73>0,E72-E73,IF(E72<0,E72,0)) -> 27,495 | F74: =IF(F72-F73>0,F72-F73,IF(F72<0,F72,0)) -> 38,946 | G74: =IF(G72-G73>0,G72-G73,IF(G72<0,G72,0)) -> 105,605
A75: Autonomous Mobility as a Service Business
A76: Fully Autonomous Capable Fleet (not in millions) | B76: =B45-200000 -> 600,000 | C76: 1,057,985 | D76: 2,351,595 | E76: 5,074,878 | F76: 10,807,888 | G76: 22,876,922
A77: % of fleet in China | B77: 33% | C77: 33% | D77: 33% | E77: 33% | F77: 33% | G77: =G34 -> 39%
A78: Potential miles per Taxi (not in millions) | B78: =C78 -> 113,623 | C78: =D78 -> 113,623 | D78: =E78 -> 113,623 | E78: =F78 -> 113,623 | F78: =G78 -> 113,623 | G78: =G31 -> 113,623
A79: % of Teslas on platform | D79: =E79/3 -> 0% | E79: =F79/3 -> 0% | F79: =G79/3 -> 0% | G79: =G14 -> 0%
A80: Total robotaxi miles (not in millions) | C80: =C79*C78*C76 -> 0 | D80: =D79*D78*D76 -> 0 | E80: =E79*E78*E76 -> 0 | F80: =F79*F78*F76 -> 0 | G80: =G79*G78*G76 -> 0
A81: Price per mile ($/mile) | C81: =IFERROR((INDEX('Monte Carlo ASP Tables'!$A18:$A23,MATCH(C80/1000000000,'Monte Carlo ASP Tables'!$A$18:$A$23))*(INDEX('Monte Carlo ASP Tables'!$B18:$B23,MATCH(C80/1000000000,'Monte Carlo ASP Tables'!$A$18:$A$23)))+(C80/1000000000-INDEX('Monte Carlo ASP Tables'!$A18:$A23,MATCH(C80/1000000000,'Monte Carlo ASP Tables'!$A$18:$A$23)))*INDEX('Monte Carlo ASP Tables'!$B18:$B23,MATCH(C80/1000000000,'Monte Carlo ASP Tables'!$A$18:$A$23)+1))/(C80/1000000000),4) -> $4.00 | D81: =IFERROR((INDEX('Monte Carlo ASP Tables'!$A18:$A23,MATCH(D80/1000000000,'Monte Carlo ASP Tables'!$A$18:$A$23))*(INDEX('Monte Carlo ASP Tables'!$B18:$B23,MATCH(D80/1000000000,'Monte Carlo ASP Tables'!$A$18:$A$23)))+(D80/1000000000-INDEX('Monte Carlo ASP Tables'!$A18:$A23,MATCH(D80/1000000000,'Monte Carlo ASP Tables'!$A$18:$A$23)))*INDEX('Monte Carlo ASP Tables'!$B18:$B23,MATCH(D80/1000000000,'Monte Carlo ASP Tables'!$A$18:$A$23)+1))/(D80/1000000000),4) -> $4.00 | E81: =IFERROR((INDEX('Monte Carlo ASP Tables'!$A18:$A22,MATCH(E80/1000000000,'Monte Carlo ASP Tables'!$A$18:$A$22))*(INDEX('Monte Carlo ASP Tables'!$B18:$B22,MATCH(E80/1000000000,'Monte Carlo ASP Tables'!$A$18:$A$22)))+(E80/1000000000-INDEX('Monte Carlo ASP Tables'!$A18:$A22,MATCH(E80/1000000000,'Monte Carlo ASP Tables'!$A$18:$A$22)))*INDEX('Monte Carlo ASP Tables'!$B18:$B22,MATCH(E80/1000000000,'Monte Carlo ASP Tables'!$A$18:$A$22)+1))/(E80/1000000000),4) -> $4.00 | F81: =IFERROR((INDEX('Monte Carlo ASP Tables'!$A18:$A22,MATCH(F80/1000000000,'Monte Carlo ASP Tables'!$A$18:$A$22))*(INDEX('Monte Carlo ASP Tables'!$B18:$B22,MATCH(F80/1000000000,'Monte Carlo ASP Tables'!$A$18:$A$22)))+(F80/1000000000-INDEX('Monte Carlo ASP Tables'!$A18:$A22,MATCH(F80/1000000000,'Monte Carlo ASP Tables'!$A$18:$A$22)))*INDEX('Monte Carlo ASP Tables'!$B18:$B22,MATCH(F80/1000000000,'Monte Carlo ASP Tables'!$A$18:$A$22)+1))/(F80/1000000000),4) -> $4.00 | G81: =IFERROR((INDEX('Monte Carlo ASP Tables'!$A18:$A22,MATCH(G80/1000000000,'Monte Carlo ASP Tables'!$A$18:$A$22))*(INDEX('Monte Carlo ASP Tables'!$B18:$B22,MATCH(G80/1000000000,'Monte Carlo ASP Tables'!$A$18:$A$22)))+(G80/1000000000-INDEX('Monte Carlo ASP Tables'!$A18:$A22,MATCH(G80/1000000000,'Monte Carlo ASP Tables'!$A$18:$A$22)))*INDEX('Monte Carlo ASP Tables'!$B18:$B22,MATCH(G80/1000000000,'Monte Carlo ASP Tables'!$A$18:$A$22)+1))/(G80/1000000000),4) -> $4.00
A82: Gross Autonomous Billings | D82: =D81*D80 -> 0 | E82: =E81*E80 -> 0 | F82: =F81*F80 -> 0 | G82: =G81*G80 -> 0
A83: Platform cut ex China | C83: =D83 -> 42% | D83: 42% | E83: 42% | F83: 42% | G83: =G32 -> 42%
A84: Platform cut in China | C84: 31% | D84: 31% | E84: 31% | F84: 31% | G84: =G33 -> 31%
A85: Net autonomous sales | C85: =C83*C82*(1-C77)+C82*C84*C77 -> 0 | D85: =D83*D82*(1-D77)+D82*D84*D77 -> 0 | E85: =E83*E82*(1-E77)+E82*E84*E77 -> 0 | F85: =F83*F82*(1-F77)+F82*F84*F77 -> 0 | G85: =G83*G82*(1-G77)+G82*G84*G77 -> 0
A86: EBITDA/net Sales | C86: =D86 -> 51% | D86: =E86 -> 51% | E86: =F86 -> 51% | F86: =G86 -> 51% | G86: =G38 -> 51%
A87: EBITDA autonomous | C87: =C86*C85 -> 0 | D87: =D86*D85 -> 0 | E87: =E86*E85 -> 0 | F87: =F86*F85 -> 0 | G87: =G86*G85 -> 0
A88: FCF/EBITDA autonomous | C88: =D88 -> 80% | D88: =E88 -> 80% | E88: =F88 -> 80% | F88: =G88 -> 80% | G88: =(1-$G28) -> 80%
A89: Cash from autonomous | C89: =C88*C87 -> 0 | D89: =D88*D87 -> 0 | E89: =E88*E87 -> 0 | F89: =F88*F87 -> 0 | G89: =G88*G87 -> 0
A90: Tesla Consolidated
A91: Total Revenue | B91: =B48+B85 -> 20,821 | C91: 20,955 | D91: 69,689 | E91: 135,500 | F91: 216,762 | G91: =G48+G85 -> 370,890
A92: Total EBIT | B92: =B60+B87 -> 883 | C92: =C60+C87 -> -1,661 | D92: 14,256 | E92: 35,041 | F92: 41,356 | G92: =G60+G87 -> 59,045
A93: Total EBITDA | B93: =B87+B60+B64 -> 2,583 | C93: 693 | D93: 17,859 | E93: 41,274 | F93: 53,126 | G93: 82,472
A94: Debt to EBITDA | C94: =C70/C93 -> 22 | D94: =D70/D93 -> 1 | E94: =E70/E93 -> 0.98 | F94: =F70/F93 -> 1.43 | G94: =G70/G93 -> 1.82
A95: Interest paid | C95: =C70*$G29 -> 516 | D95: =D70*$G29 -> 782 | E95: =E70*$G29 -> 1,342 | F95: =F70*$G29 -> 2,522 | G95: =G70*$G29 -> 5,005
A96: Debt to net PP&E | C96: =C70/C65 -> 1.15 | D96: =D70/D65 -> 1.11 | E96: =E70/E65 -> 1.04 | F96: =F70/F65 -> 0.98 | G96: =G70/G65 -> 0.94
A97: Cash generation | C97: =C60+C64-C95-(C60-C95)*($G28)+C89 -> 612 | D97: 14,382 | E97: 33,192 | F97: 42,838 | G97: =G60+G64-G95-(G60-G95)*($G28)+G89 -> 66,659
A99: Total Gross Margin | B99: =(B85*80%+B54)/B91 -> 21% | C99: 8% | D99: 37% | E99: 42% | F99: 35% | G99: =(G85*80%+G54)/G91 -> 32%
A100: Total EBITDA Margin | B100: =B93/B91 -> 12% | C100: 3% | D100: 26% | E100: 30% | F100: 25% | G100: =G93/G91 -> 22%
A101: EV/EBITDA for EV | G101: =G39 -> 11
A102: EV/EBITDA for MaaS | G102: =G40 -> 16
A103: Enterprise Value | B103: =B104+B70-B69 -> 98,121 | G103: =G101*(G60+G64)+G102*G87 -> 907,190
A104: Market Cap | B104: =B105*B106 -> 91,021 | G104: =G103-G70+G72+G69 -> 867,059
A105: Shares Outstanding | B105: 180 | C105: =D105 -> 187 | D105: =E105 -> 187 | E105: =F105 -> 187 | F105: =G105 -> 187 | G105: =($G19+$G20)/($G18/$B105)+$B105 -> 187
A106: Stock Price | B106: 505 | G106: =G104/G105 -> 4,628
A107: Cash flow yield | G107: =G97/G104 -> 7.7%
A108: CAGR | G108: =(G106/B106)^(1/5)-1 -> 56%

Sheet Monte Carlo Simulations
A1: This worksheet contains extracts from all simulations.
A3: Monte Carlo | B3: Max gross margin | C3: Capital efficiency (gross capex per unit production) | D3: Percent of all Teslas in autonomous fleet in 2024 | E3: Odds of robotaxi at all | F3: Percent of factory-build debt-funded | G3: 2024 Cars sold | H3: =CONCATENATE(G3," gross margin") -> 2024 Cars sold gross margin | I3: 2024 ASP | J3: EV revenue | K3: Robotaxi revenue | L3: Gross margin | M3: EBITDA margin | N3: EV/EBITDA | O3: Market cap | P3: Share price | Q3: Cash flow yield | R3: Probability
A4: 1 | B4: =TRANSPOSE('Monte Carlo Valuation'!G12:G16) -> 64% | C4: 7,945 | D4: 0% | E4: 0 | F4: 70% | G4: ='Monte Carlo Valuation'!G43 -> 12,069,033 | H4: ='Monte Carlo Valuation'!G53 -> 32% | I4: ='Monte Carlo Valuation'!G47 -> 30,731 | J4: ='Monte Carlo Valuation'!G48 -> $370,890,483,749 | K4: ='Monte Carlo Valuation'!G85 -> 0 | L4: ='Monte Carlo Valuation'!G99 -> 32% | M4: ='Monte Carlo Valuation'!G100 -> 22% | N4: ='Monte Carlo Valuation'!G103/'Monte Carlo Valuation'!G93 -> 11.00 | O4: ='Monte Carlo Valuation'!G104 -> 8.670594197e+11 | P4: ='Monte Carlo Valuation'!G106 -> 4,628 | Q4: ='Monte Carlo Valuation'!G107 -> 8% | R4: =1/COUNT(A4:A5003) -> 0.02%
A5: =A4+1 -> 2 | B5: 49% | C5: 15,893 | D5: 0% | E5: 0 | F5: 35% | G5: 4,025,237 | H5: 45% | I5: 44,363 | J5: $178,571,374,720 | K5: 0 | L5: 45% | M5: 38% | N5: 11.00 | O5: 7.538766071e+11 | P5: 4,040 | Q5: 7% | R5: 0.02%
A6: 3 | B6: 56% | C6: 17,292 | D6: 63% | E6: 1 | F6: 38% | G6: 2,706,067 | H6: 44% | I6: 47,770 | J6: $129,269,629,757 | K6: $264,848,709,612 | L6: 68% | M6: 33% | N6: 14.28 | O6: 1.941152138e+12 | P6: 10,462 | Q6: 5% | R6: 0.02%
A7: 4 | B7: 46% | C7: 24,010 | D7: 0% | E7: 0 | F7: 75% | G7: 4,170,093 | H7: 37% | I7: 43,976 | J7: $183,384,760,067 | K7: 0 | L7: 37% | M7: 35% | N7: 11.00 | O7: 6.057793734e+11 | P7: 3,285 | Q7: 8% | R7: 0.02%
A8: 5 | B8: 69% | C8: 16,191 | D8: 0% | E8: 0 | F8: 60% | G8: 4,584,042 | H8: 37% | I8: 43,146 | J8: $197,783,554,812 | K8: 0 | L8: 37% | M8: 32% | N8: 11.00 | O8: 6.478131423e+11 | P8: 3,507 | Q8: 8% | R8: 0.02%
A9: 6 | B9: 72% | C9: 16,995 | D9: 0% | E9: 0 | F9: 34% | G9: 2,459,681 | H9: 46% | I9: 53,513 | J9: $131,624,832,326 | K9: 0 | L9: 46% | M9: 38% | N9: 11.00 | O9: 5.637688612e+11 | P9: 3,057 | Q9: 7% | R9: 0.02%
A10: 7 | B10: 50% | C10: 16,143 | D10: 0% | E10: 0 | F10: 61% | G10: 4,437,153 | H10: 36% | I10: 43,311 | J10: $192,175,634,410 | K10: 0 | L10: 36% | M10: 28% | N10: 11.00 | O10: 5.507866257e+11 | P10: 2,984 | Q10: 8% | R10: 0.02%
A11: 8 | B11: 72% | C11: 22,910 | D11: 55% | E11: 1 | F11: 47% | G11: 3,112,144 | H11: 49% | I11: 54,017 | J11: $168,107,231,831 | K11: $188,408,419,268 | L11: 65% | M11: 32% | N11: 12.77 | O11: 1.464566845e+12 | P11: 7,950 | Q11: 6% | R11: 0.02%
A12: 9 | B12: 60% | C12: 9,014 | D12: 0% | E12: 0 | F12: 47% | G12: 6,995,346 | H12: 38% | I12: 37,598 | J12: $263,009,040,366 | K12: 0 | L12: 38% | M12: 30% | N12: 11.00 | O12: 8.507845319e+11 | P12: 4,567 | Q12: 7% | R12: 0.02%
A13: 10 | B13: 31% | C13: 6,186 | D13: 0% | E13: 0 | F13: 40% | G13: 10,800,869 | H13: 31% | I13: 33,990 | J13: $367,124,126,402 | K13: 0 | L13: 31% | M13: 18% | N13: 11.00 | O13: 7.34523836e+11 | P13: 3,995 | Q13: 7% | R13: 0.02%
A14: 11 | B14: 47% | C14: 18,690 | D14: 79% | E14: 1 | F14: 95% | G14: 8,183,018 | H14: 32% | I14: 36,891 | J14: $301,876,291,834 | K14: $307,866,791,184 | L14: 56% | M14: 36% | N14: 13.93 | O14: 3.019761247e+12 | P14: 16,334 | Q14: 6% | R14: 0.02%
A15: 12 | B15: 47% | C15: 16,663 | D15: 0% | E15: 0 | F15: 75% | G15: 7,510,838 | H15: 39% | I15: 36,633 | J15: $275,142,044,071 | K15: 0 | L15: 39% | M15: 34% | N15: 11.00 | O15: 9.287119201e+11 | P15: 5,038 | Q15: 8% | R15: 0.02%
A16: 13 | B16: 34% | C16: 13,897 | D16: 0% | E16: 0 | F16: 67% | G16: 7,143,435 | H16: 34% | I16: 37,306 | J16: $266,490,286,447 | K16: 0 | L16: 34% | M16: 27% | N16: 11.00 | O16: 7.196558128e+11 | P16: 3,849 | Q16: 8% | R16: 0.02%
A17: 14 | B17: 35% | C17: 10,407 | D17: 0% | E17: 0 | F17: 88% | G17: 8,628,465 | H17: 35% | I17: 35,445 | J17: $305,839,280,433 | K17: 0 | L17: 35% | M17: 25% | N17: 11.00 | O17: 7.860060684e+11 | P17: 4,194 | Q17: 8% | R17: 0.02%
A18: 15 | B18: 65% | C18: 12,642 | D18: 0% | E18: 0 | F18: 37% | G18: 4,423,535 | H18: 41% | I18: 41,150 | J18: $182,030,156,829 | K18: 0 | L18: 41% | M18: 32% | N18: 11.00 | O18: 6.506355236e+11 | P18: 3,515 | Q18: 7% | R18: 0.02%
A19: 16 | B19: 39% | C19: 9,389 | D19: 68% | E19: 1 | F19: 15% | G19: 7,329,101 | H19: 39% | I19: 38,482 | J19: $282,038,916,571 | K19: $258,523,475,486 | L19: 58% | M19: 34% | N19: 13.70 | O19: 2.66215584e+12 | P19: 14,162 | Q19: 6% | R19: 0.02%
A20: 17 | B20: 47% | C20: 20,172 | D20: 74% | E20: 1 | F20: 72% | G20: 4,492,422 | H20: 36% | I20: 43,143 | J20: $193,818,140,195 | K20: $306,615,235,976 | L20: 63% | M20: 36% | N20: 14.43 | O20: 2.667698835e+12 | P20: 14,402 | Q20: 5% | R20: 0.02%
A21: 18 | B21: 47% | C21: 9,928 | D21: 0% | E21: 0 | F21: 72% | G21: 7,245,102 | H21: 36% | I21: 38,480 | J21: $278,788,989,959 | K21: 0 | L21: 36% | M21: 26% | N21: 11.00 | O21: 7.746127977e+11 | P21: 4,178 | Q21: 7% | R21: 0.02%
A22: 19 | B22: 49% | C22: 12,799 | D22: 69% | E22: 1 | F22: 69% | G22: 6,923,779 | H22: 40% | I22: 39,236 | J22: $271,662,037,711 | K22: $325,832,212,081 | L22: 62% | M22: 37% | N22: 14.04 | O22: 3.214783554e+12 | P22: 17,396 | Q22: 5% | R22: 0.02%
A23: 20 | B23: 48% | C23: 11,287 | D23: 0% | E23: 0 | F23: 70% | G23: 8,420,484 | H23: 36% | I23: 37,015 | J23: $311,684,362,342 | K23: 0 | L23: 36% | M23: 26% | N23: 11.00 | O23: 8.372283486e+11 | P23: 4,528 | Q23: 8% | R23: 0.02%
A24: 21 | B24: 59% | C24: 20,571 | D24: 0% | E24: 0 | F24: 79% | G24: 6,185,512 | H24: 38% | I24: 41,760 | J24: $258,309,939,556 | K24: 0 | L24: 38% | M24: 33% | N24: 11.00 | O24: 8.309078933e+11 | P24: 4,503 | Q24: 8% | R24: 0.02%
A25: 22 | B25: 52% | C25: 7,954 | D25: 55% | E25: 1 | F25: 49% | G25: 8,931,463 | H25: 39% | I25: 35,753 | J25: $319,322,345,166 | K25: $298,295,791,721 | L25: 59% | M25: 28% | N25: 13.44 | O25: 2.41551291e+12 | P25: 12,992 | Q25: 6% | R25: 0.02%
A26: 23 | B26: 61% | C26: 24,326 | D26: 0% | E26: 0 | F26: 72% | G26: 6,039,936 | H26: 38% | I26: 39,375 | J26: $237,820,690,255 | K26: 0 | L26: 38% | M26: 37% | N26: 11.00 | O26: 8.447681756e+11 | P26: 4,550 | Q26: 8% | R26: 0.02%
A27: 24 | B27: 42% | C27: 5,000 | D27: 0% | E27: 0 | F27: 50% | G27: 13,818,642 | H27: 35% | I27: 32,796 | J27: $453,193,222,906 | K27: 0 | L27: 35% | M27: 22% | N27: 11.00 | O27: 1.171268679e+12 | P27: 6,235 | Q27: 7% | R27: 0.02%
A28: 25 | B28: 57% | C28: 19,856 | D28: 0% | E28: 0 | F28: 34% | G28: 1,839,874 | H28: 42% | I28: 53,510 | J28: $98,452,447,661 | K28: 0 | L28: 42% | M28: 34% | N28: 11.00 | O28: 3.6682797e+11 | P28: 1,971 | Q28: 7% | R28: 0.02%
A29: 26 | B29: 72% | C29: 8,530 | D29: 0% | E29: 0 | F29: 47% | G29: 7,886,424 | H29: 37% | I29: 37,672 | J29: $297,095,001,227 | K29: 0 | L29: 37% | M29: 27% | N29: 11.00 | O29: 9.135391433e+11 | P29: 4,888 | Q29: 7% | R29: 0.02%
A30: 27 | B30: 50% | C30: 16,591 | D30: 0% | E30: 0 | F30: 24% | G30: 2,220,701 | H30: 44% | I30: 53,526 | J30: $118,865,972,700 | K30: 0 | L30: 44% | M30: 36% | N30: 11.00 | O30: 4.80873366e+11 | P30: 2,603 | Q30: 7% | R30: 0.02%
A31: 28 | B31: 74% | C31: 18,496 | D31: 64% | E31: 1 | F31: 73% | G31: 5,850,440 | H31: 34% | I31: 39,636 | J31: $231,887,064,245 | K31: $212,338,646,856 | L31: 56% | M31: 34% | N31: 13.74 | O31: 2.117531038e+12 | P31: 11,372 | Q31: 6% | R31: 0.02%
A32: 29 | B32: 71% | C32: 17,366 | D32: 0% | E32: 0 | F32: 55% | G32: 5,046,671 | H32: 40% | I32: 43,522 | J32: $219,643,228,113 | K32: 0 | L32: 40% | M32: 35% | N32: 11.00 | O32: 7.894687416e+11 | P32: 4,253 | Q32: 8% | R32: 0.02%
A33: 30 | B33: 20% | C33: 20,866 | D33: 0% | E33: 0 | F33: 46% | G33: 1,717,717 | H33: 20% | I33: 53,730 | J33: $92,292,913,318 | K33: 0 | L33: 20% | M33: 12% | N33: 11.00 | O33: 1.094974579e+11 | P33: 593 | Q33: 9% | R33: 0.02%
A34: 31 | B34: 56% | C34: 10,222 | D34: 55% | E34: 1 | F34: 50% | G34: 8,474,094 | H34: 26% | I34: 34,056 | J34: $288,595,614,668 | K34: $332,559,605,179 | L34: 55% | M34: 31% | N34: 14.48 | O34: 2.844022895e+12 | P34: 15,388 | Q34: 5% | R34: 0.02%
A35: 32 | B35: 56% | C35: 13,677 | D35: 0% | E35: 0 | F35: 54% | G35: 7,724,776 | H35: 36% | I35: 36,262 | J35: $280,117,259,802 | K35: 0 | L35: 36% | M35: 29% | N35: 11.00 | O35: 8.354982133e+11 | P35: 4,466 | Q35: 8% | R35: 0.02%
A36: 33 | B36: 61% | C36: 17,485 | D36: 0% | E36: 0 | F36: 58% | G36: 5,243,213 | H36: 39% | I36: 43,108 | J36: $226,022,481,744 | K36: 0 | L36: 39% | M36: 34% | N36: 11.00 | O36: 8.099685043e+11 | P36: 4,385 | Q36: 8% | R36: 0.02%
A37: 34 | B37: 80% | C37: 16,122 | D37: 49% | E37: 1 | F37: 67% | G37: 6,786,512 | H37: 35% | I37: 38,673 | J37: $262,453,942,688 | K37: $344,193,522,298 | L37: 60% | M37: 45% | N37: 14.53 | O37: 4.152243592e+12 | P37: 22,155 | Q37: 5% | R37: 0.02%
A38: 35 | B38: 67% | C38: 18,118 | D38: 90% | E38: 1 | F38: 57% | G38: 4,258,594 | H38: 48% | I38: 51,213 | J38: $218,094,670,408 | K38: $225,999,470,831 | L38: 64% | M38: 46% | N38: 13.68 | O38: 2.90125479e+12 | P38: 15,691 | Q38: 6% | R38: 0.02%
A39: 36 | B39: 53% | C39: 18,371 | D39: 50% | E39: 1 | F39: 28% | G39: 2,708,558 | H39: 39% | I39: 49,494 | J39: $134,057,780,981 | K39: $173,363,600,708 | L39: 62% | M39: 41% | N39: 14.24 | O39: 1.871203879e+12 | P39: 10,119 | Q39: 5% | R39: 0.02%
A40: 37 | B40: 55% | C40: 18,282 | D40: 0% | E40: 0 | F40: 68% | G40: 4,227,680 | H40: 36% | I40: 43,094 | J40: $182,186,263,401 | K40: 0 | L40: 36% | M40: 32% | N40: 11.00 | O40: 5.810318076e+11 | P40: 3,148 | Q40: 8% | R40: 0.02%
A41: 38 | B41: 48% | C41: 20,804 | D41: 0% | E41: 0 | F41: 76% | G41: 4,542,469 | H41: 31% | I41: 39,941 | J41: $181,428,899,758 | K41: 0 | L41: 31% | M41: 29% | N41: 11.00 | O41: 4.850556533e+11 | P41: 2,623 | Q41: 9% | R41: 0.02%
A42: 39 | B42: 55% | C42: 13,181 | D42: 40% | E42: 1 | F42: 54% | G42: 5,131,524 | H42: 45% | I42: 43,521 | J42: $223,330,885,841 | K42: $241,349,840,674 | L42: 63% | M42: 41% | N42: 13.83 | O42: 2.763484473e+12 | P42: 14,972 | Q42: 6% | R42: 0.02%
A43: 40 | B43: 26% | C43: 10,202 | D43: 0% | E43: 0 | F43: 68% | G43: 9,780,613 | H43: 26% | I43: 35,073 | J43: $343,038,265,190 | K43: 0 | L43: 26% | M43: 17% | N43: 11.00 | O43: 5.733520182e+11 | P43: 3,108 | Q43: 8% | R43: 0.02%
A44: 41 | B44: 43% | C44: 16,968 | D44: 0% | E44: 0 | F44: 66% | G44: 4,995,268 | H44: 38% | I44: 43,209 | J44: $215,839,384,709 | K44: 0 | L44: 38% | M44: 31% | N44: 11.00 | O44: 7.024601801e+11 | P44: 3,777 | Q44: 8% | R44: 0.02%
A45: 42 | B45: 36% | C45: 19,064 | D45: 0% | E45: 0 | F45: 54% | G45: 2,805,799 | H45: 36% | I45: 53,694 | J45: $150,655,509,393 | K45: 0 | L45: 36% | M45: 27% | N45: 11.00 | O45: 4.187846996e+11 | P45: 2,268 | Q45: 8% | R45: 0.02%
A46: 43 | B46: 20% | C46: 21,872 | D46: 80% | E46: 1 | F46: 95% | G46: 7,584,161 | H46: 20% | I46: 37,656 | J46: $285,590,627,982 | K46: $315,053,566,824 | L46: 51% | M46: 24% | N46: 14.23 | O46: 1.926172811e+12 | P46: 10,418 | Q46: 6% | R46: 0.02%
A47: 44 | B47: 40% | C47: 7,915 | D47: 0% | E47: 0 | F47: 57% | G47: 10,798,795 | H47: 40% | I47: 36,807 | J47: $397,474,532,397 | K47: 0 | L47: 40% | M47: 30% | N47: 11.00 | O47: 1.336821587e+12 | P47: 7,257 | Q47: 7% | R47: 0.02%
A48: 45 | B48: 24% | C48: 15,259 | D48: 0% | E48: 0 | F48: 65% | G48: 3,917,770 | H48: 24% | I48: 46,688 | J48: $182,912,131,483 | K48: 0 | L48: 24% | M48: 15% | N48: 11.00 | O48: 2.526286876e+11 | P48: 1,362 | Q48: 9% | R48: 0.02%
A49: 46 | B49: 53% | C49: 12,912 | D49: 46% | E49: 1 | F49: 24% | G49: 4,659,806 | H49: 41% | I49: 41,321 | J49: $192,545,647,344 | K49: $218,322,737,961 | L49: 62% | M49: 31% | N49: 13.46 | O49: 1.762496182e+12 | P49: 9,458 | Q49: 6% | R49: 0.02%
A50: 47 | B50: 44% | C50: 13,184 | D50: 0% | E50: 0 | F50: 75% | G50: 5,995,770 | H50: 41% | I50: 42,721 | J50: $256,144,975,181 | K50: 0 | L50: 41% | M50: 30% | N50: 11.00 | O50: 8.523207182e+11 | P50: 4,567 | Q50: 7% | R50: 0.02%
A51: 48 | B51: 60% | C51: 15,575 | D51: 0% | E51: 0 | F51: 56% | G51: 4,564,270 | H51: 39% | I51: 41,305 | J51: $188,527,272,216 | K51: 0 | L51: 39% | M51: 31% | N51: 11.00 | O51: 6.005752614e+11 | P51: 3,260 | Q51: 8% | R51: 0.02%
A52: 49 | B52: 61% | C52: 20,378 | D52: 53% | E52: 1 | F52: 68% | G52: 4,500,398 | H52: 41% | I52: 44,394 | J52: $199,789,491,422 | K52: $312,606,687,491 | L52: 65% | M52: 41% | N52: 14.28 | O52: 3.118334262e+12 | P52: 16,835 | Q52: 5% | R52: 0.02%
A53: 50 | B53: 49% | C53: 22,472 | D53: 0% | E53: 0 | F53: 51% | G53: 2,778,207 | H53: 43% | I53: 53,737 | J53: $149,292,610,797 | K53: 0 | L53: 43% | M53: 36% | N53: 11.00 | O53: 5.79426307e+11 | P53: 3,145 | Q53: 8% | R53: 0.02%
A54: 51 | B54: 47% | C54: 22,198 | D54: 0% | E54: 0 | F54: 69% | G54: 5,182,971 | H54: 37% | I54: 42,101 | J54: $218,206,462,785 | K54: 0 | L54: 37% | M54: 34% | N54: 11.00 | O54: 7.060749737e+11 | P54: 3,831 | Q54: 8% | R54: 0.02%
A55: 52 | B55: 45% | C55: 16,025 | D55: 0% | E55: 0 | F55: 41% | G55: 3,417,602 | H55: 45% | I55: 49,126 | J55: $167,894,078,355 | K55: 0 | L55: 45% | M55: 37% | N55: 11.00 | O55: 6.91873727e+11 | P55: 3,725 | Q55: 7% | R55: 0.02%
A56: 53 | B56: 45% | C56: 12,643 | D56: 0% | E56: 0 | F56: 73% | G56: 6,256,223 | H56: 38% | I56: 41,198 | J56: $257,744,001,901 | K56: 0 | L56: 38% | M56: 29% | N56: 11.00 | O56: 8.153391134e+11 | P56: 4,385 | Q56: 7% | R56: 0.02%
A57: 54 | B57: 57% | C57: 22,062 | D57: 0% | E57: 0 | F57: 56% | G57: 3,756,900 | H57: 45% | I57: 50,128 | J57: $188,324,112,994 | K57: 0 | L57: 45% | M57: 39% | N57: 11.00 | O57: 7.641332766e+11 | P57: 4,086 | Q57: 8% | R57: 0.02%
A58: 55 | B58: 56% | C58: 15,727 | D58: 60% | E58: 1 | F58: 74% | G58: 9,768,252 | H58: 33% | I58: 35,176 | J58: $343,604,699,912 | K58: $324,585,226,109 | L58: 56% | M58: 35% | N58: 13.76 | O58: 3.190882947e+12 | P58: 17,221 | Q58: 6% | R58: 0.02%
A59: 56 | B59: 41% | C59: 13,129 | D59: 0% | E59: 0 | F59: 23% | G59: 3,041,557 | H59: 41% | I59: 52,499 | J59: $159,680,030,540 | K59: 0 | L59: 41% | M59: 33% | N59: 11.00 | O59: 5.956089658e+11 | P59: 3,209 | Q59: 7% | R59: 0.02%
A60: 57 | B60: 46% | C60: 14,773 | D60: 0% | E60: 0 | F60: 81% | G60: 6,749,937 | H60: 35% | I60: 38,663 | J60: $260,972,956,625 | K60: 0 | L60: 35% | M60: 30% | N60: 11.00 | O60: 7.967492994e+11 | P60: 4,287 | Q60: 8% | R60: 0.02%
A61: 58 | B61: 50% | C61: 16,430 | D61: 80% | E61: 1 | F61: 73% | G61: 9,653,361 | H61: 31% | I61: 34,246 | J61: $330,587,091,148 | K61: $348,227,359,027 | L61: 56% | M61: 38% | N61: 14.22 | O61: 3.766740141e+12 | P61: 19,901 | Q61: 6% | R61: 0.02%
A62: 59 | B62: 50% | C62: 16,766 | D62: 0% | E62: 0 | F62: 43% | G62: 2,852,678 | H62: 43% | I62: 53,015 | J62: $151,235,193,988 | K62: 0 | L62: 43% | M62: 35% | N62: 11.00 | O62: 5.751644872e+11 | P62: 3,109 | Q62: 7% | R62: 0.02%
A63: 60 | B63: 48% | C63: 9,919 | D63: 45% | E63: 1 | F63: 52% | G63: 4,924,853 | H63: 45% | I63: 42,001 | J63: $206,849,845,023 | K63: $291,977,221,548 | L63: 66% | M63: 35% | N63: 13.95 | O63: 2.607310541e+12 | P63: 14,132 | Q63: 5% | R63: 0.02%
A64: 61 | B64: 57% | C64: 13,694 | D64: 0% | E64: 0 | F64: 87% | G64: 6,956,173 | H64: 30% | I64: 34,409 | J64: $239,351,626,433 | K64: 0 | L64: 30% | M64: 26% | N64: 11.00 | O64: 6.074366769e+11 | P64: 3,258 | Q64: 8% | R64: 0.02%
A65: 62 | B65: 46% | C65: 24,018 | D65: 0% | E65: 0 | F65: 27% | G65: 1,924,546 | H65: 46% | I65: 53,836 | J65: $103,609,053,002 | K65: 0 | L65: 46% | M65: 38% | N65: 11.00 | O65: 4.381208026e+11 | P65: 2,378 | Q65: 7% | R65: 0.02%
A66: 63 | B66: 48% | C66: 17,078 | D66: 0% | E66: 0 | F66: 66% | G66: 6,316,711 | H66: 38% | I66: 35,935 | J66: $226,990,013,621 | K66: 0 | L66: 38% | M66: 34% | N66: 11.00 | O66: 7.41360246e+11 | P66: 3,994 | Q66: 8% | R66: 0.02%
A67: 64 | B67: 40% | C67: 19,387 | D67: 0% | E67: 0 | F67: 43% | G67: 2,844,281 | H67: 40% | I67: 51,924 | J67: $147,686,743,179 | K67: 0 | L67: 40% | M67: 31% | N67: 11.00 | O67: 4.917376317e+11 | P67: 2,642 | Q67: 8% | R67: 0.02%
A68: 65 | B68: 61% | C68: 16,025 | D68: 0% | E68: 0 | F68: 39% | G68: 3,470,073 | H68: 46% | I68: 49,245 | J68: $170,884,589,897 | K68: 0 | L68: 46% | M68: 39% | N68: 11.00 | O68: 7.451661846e+11 | P68: 4,031 | Q68: 7% | R68: 0.02%
A69: =A68+1 -> 66 | B69: 53% | C69: 5,912 | D69: 0% | E69: 0 | F69: 58% | G69: 10,586,612 | H69: 46% | I69: 36,728 | J69: $388,820,657,251 | K69: 0 | L69: 46% | M69: 35% | N69: 11.00 | O69: 1.599370071e+12 | P69: 8,571 | Q69: 7% | R69: 0.02%
A70: 67 | B70: 60% | C70: 9,043 | D70: 0% | E70: 0 | F70: 35% | G70: 6,427,476 | H70: 44% | I70: 39,223 | J70: $252,103,508,834 | K70: 0 | L70: 44% | M70: 34% | N70: 11.00 | O70: 9.666089618e+11 | P70: 5,225 | Q70: 7% | R70: 0.02%
A71: 68 | B71: 51% | C71: 16,198 | D71: 38% | E71: 1 | F71: 59% | G71: 5,449,215 | H71: 34% | I71: 39,492 | J71: $215,200,683,085 | K71: $230,002,998,991 | L71: 58% | M71: 37% | N71: 14.10 | O71: 2.336588211e+12 | P71: 12,516 | Q71: 6% | R71: 0.02%
A72: 69 | B72: 59% | C72: 8,930 | D72: 0% | E72: 0 | F72: 34% | G72: 8,010,690 | H72: 36% | I72: 37,813 | J72: $302,905,692,645 | K72: 0 | L72: 36% | M72: 26% | N72: 11.00 | O72: 8.763745858e+11 | P72: 4,740 | Q72: 7% | R72: 0.02%
A73: 70 | B73: 42% | C73: 10,974 | D73: 57% | E73: 1 | F73: 60% | G73: 8,484,333 | H73: 42% | I73: 37,067 | J73: $314,490,807,091 | K73: $231,607,914,780 | L73: 58% | M73: 29% | N73: 12.48 | O73: 2.016048936e+12 | P73: 10,857 | Q73: 6% | R73: 0.02%
A74: 71 | B74: 52% | C74: 17,477 | D74: 0% | E74: 0 | F74: 58% | G74: 5,227,320 | H74: 39% | I74: 43,074 | J74: $225,162,184,682 | K74: 0 | L74: 39% | M74: 32% | N74: 11.00 | O74: 7.582742284e+11 | P74: 4,073 | Q74: 8% | R74: 0.02%
A75: 72 | B75: 52% | C75: 23,594 | D75: 0% | E75: 0 | F75: 23% | G75: 1,720,565 | H75: 45% | I75: 53,744 | J75: $92,470,121,830 | K75: 0 | L75: 45% | M75: 37% | N75: 11.00 | O75: 3.840247233e+11 | P75: 2,082 | Q75: 7% | R75: 0.02%
A76: 73 | B76: 26% | C76: 19,185 | D76: 0% | E76: 0 | F76: 74% | G76: 4,799,704 | H76: 26% | I76: 39,692 | J76: $190,507,857,594 | K76: 0 | L76: 26% | M76: 19% | N76: 11.00 | O76: 3.09447477e+11 | P76: 1,654 | Q76: 9% | R76: 0.02%
A77: 74 | B77: 48% | C77: 17,430 | D77: 0% | E77: 0 | F77: 74% | G77: 7,429,091 | H77: 30% | I77: 37,209 | J77: $276,429,272,612 | K77: 0 | L77: 30% | M77: 26% | N77: 11.00 | O77: 6.553413573e+11 | P77: 3,463 | Q77: 8% | R77: 0.02%
A78: 75 | B78: 49% | C78: 22,749 | D78: 0% | E78: 0 | F78: 75% | G78: 7,946,693 | H78: 37% | I78: 37,830 | J78: $300,621,743,772 | K78: 0 | L78: 37% | M78: 35% | N78: 11.00 | O78: 9.427962891e+11 | P78: 5,072 | Q78: 9% | R78: 0.02%
A79: 76 | B79: 37% | C79: 11,448 | D79: 76% | E79: 1 | F79: 46% | G79: 6,095,303 | H79: 37% | I79: 40,967 | J79: $249,704,336,372 | K79: $260,617,040,971 | L79: 59% | M79: 35% | N79: 14.08 | O79: 2.686332698e+12 | P79: 14,523 | Q79: 5% | R79: 0.02%
A80: 77 | B80: 47% | C80: 13,041 | D80: 0% | E80: 0 | F80: 69% | G80: 8,234,126 | H80: 37% | I80: 36,586 | J80: $301,253,857,165 | K80: 0 | L80: 37% | M80: 30% | N80: 11.00 | O80: 9.505645667e+11 | P80: 5,144 | Q80: 8% | R80: 0.02%
A81: 78 | B81: 31% | C81: 18,049 | D81: 0% | E81: 0 | F81: 42% | G81: 2,434,201 | H81: 31% | I81: 53,643 | J81: $130,577,102,760 | K81: 0 | L81: 31% | M81: 21% | N81: 11.00 | O81: 2.895355674e+11 | P81: 1,554 | Q81: 8% | R81: 0.02%
A82: 79 | B82: 37% | C82: 17,636 | D82: 0% | E82: 0 | F82: 29% | G82: 3,026,102 | H82: 37% | I82: 53,692 | J82: $162,477,777,708 | K82: 0 | L82: 37% | M82: 27% | N82: 11.00 | O82: 4.839051593e+11 | P82: 2,560 | Q82: 7% | R82: 0.02%
A83: 80 | B83: 64% | C83: 21,838 | D83: 0% | E83: 0 | F83: 57% | G83: 2,742,132 | H83: 44% | I83: 53,727 | J83: $147,327,823,848 | K83: 0 | L83: 44% | M83: 36% | N83: 11.00 | O83: 5.583074466e+11 | P83: 3,028 | Q83: 8% | R83: 0.02%
A84: 81 | B84: 36% | C84: 15,018 | D84: 56% | E84: 1 | F84: 78% | G84: 6,099,818 | H84: 36% | I84: 39,987 | J84: $243,915,540,193 | K84: $214,625,046,120 | L84: 57% | M84: 37% | N84: 14.01 | O84: 2.471529628e+12 | P84: 13,192 | Q84: 6% | R84: 0.02%
A85: 82 | B85: 48% | C85: 24,909 | D85: 40% | E85: 1 | F85: 36% | G85: 2,402,925 | H85: 41% | I85: 50,921 | J85: $122,360,288,854 | K85: $181,165,921,352 | L85: 64% | M85: 53% | N85: 14.59 | O85: 2.426903685e+12 | P85: 13,191 | Q85: 5% | R85: 0.02%
A86: 83 | B86: 73% | C86: 13,063 | D86: 55% | E86: 1 | F86: 59% | G86: 6,353,472 | H86: 38% | I86: 35,380 | J86: $224,784,715,185 | K86: $310,581,851,466 | L86: 62% | M86: 33% | N86: 13.97 | O86: 2.576058482e+12 | P86: 13,870 | Q86: 6% | R86: 0.02%
A87: 84 | B87: 63% | C87: 11,842 | D87: 0% | E87: 0 | F87: 56% | G87: 5,393,175 | H87: 38% | I87: 38,438 | J87: $207,304,230,530 | K87: 0 | L87: 38% | M87: 29% | N87: 11.00 | O87: 6.648068926e+11 | P87: 3,598 | Q87: 7% | R87: 0.02%
A88: 85 | B88: 29% | C88: 10,983 | D88: 75% | E88: 1 | F88: 51% | G88: 8,796,655 | H88: 29% | I88: 37,121 | J88: $326,544,661,988 | K88: $351,479,163,056 | L88: 56% | M88: 27% | N88: 14.12 | O88: 2.657759599e+12 | P88: 14,331 | Q88: 6% | R88: 0.02%
A89: 86 | B89: 45% | C89: 18,326 | D89: 0% | E89: 0 | F89: 40% | G89: 2,463,712 | H89: 45% | I89: 53,661 | J89: $132,204,721,348 | K89: 0 | L89: 45% | M89: 38% | N89: 11.00 | O89: 5.510591956e+11 | P89: 2,999 | Q89: 7% | R89: 0.02%
A90: 87 | B90: 42% | C90: 22,280 | D90: 0% | E90: 0 | F90: 48% | G90: 2,545,026 | H90: 42% | I90: 53,611 | J90: $136,441,529,384 | K90: 0 | L90: 42% | M90: 34% | N90: 11.00 | O90: 5.04580648e+11 | P90: 2,733 | Q90: 8% | R90: 0.02%
A91: 88 | B91: 49% | C91: 12,031 | D91: 0% | E91: 0 | F91: 70% | G91: 9,897,901 | H91: 33% | I91: 35,009 | J91: $346,513,204,300 | K91: 0 | L91: 33% | M91: 24% | N91: 11.00 | O91: 8.107490722e+11 | P91: 4,388 | Q91: 8% | R91: 0.02%
A92: 89 | B92: 32% | C92: 10,085 | D92: 0% | E92: 0 | F92: 19% | G92: 3,949,546 | H92: 32% | I92: 41,589 | J92: $164,256,639,425 | K92: 0 | L92: 32% | M92: 21% | N92: 11.00 | O92: 3.871675693e+11 | P92: 2,082 | Q92: 7% | R92: 0.02%
A93: 90 | B93: 44% | C93: 10,707 | D93: 0% | E93: 0 | F93: 62% | G93: 8,009,707 | H93: 32% | I93: 35,719 | J93: $286,102,067,468 | K93: 0 | L93: 32% | M93: 23% | N93: 11.00 | O93: 6.442220252e+11 | P93: 3,468 | Q93: 8% | R93: 0.02%
A94: 91 | B94: 49% | C94: 22,039 | D94: 0% | E94: 0 | F94: 44% | G94: 3,175,101 | H94: 46% | I94: 47,650 | J94: $151,294,728,078 | K94: 0 | L94: 46% | M94: 41% | N94: 11.00 | O94: 6.775054505e+11 | P94: 3,654 | Q94: 8% | R94: 0.02%
A95: 92 | B95: 54% | C95: 22,779 | D95: 57% | E95: 1 | F95: 70% | G95: 5,654,501 | H95: 33% | I95: 38,658 | J95: $218,594,520,826 | K95: $289,627,035,814 | L95: 60% | M95: 38% | N95: 14.25 | O95: 2.708891331e+12 | P95: 14,609 | Q95: 6% | R95: 0.02%
A96: 93 | B96: 45% | C96: 27,000 | D96: 0% | E96: 0 | F96: 48% | G96: 2,040,781 | H96: 41% | I96: 53,635 | J96: $109,457,366,844 | K96: 0 | L96: 41% | M96: 35% | N96: 11.00 | O96: 4.116475483e+11 | P96: 2,224 | Q96: 8% | R96: 0.02%
A97: 94 | B97: 36% | C97: 5,899 | D97: 35% | E97: 1 | F97: 78% | G97: 10,631,472 | H97: 36% | I97: 35,366 | J97: $375,991,390,940 | K97: $306,403,126,186 | L97: 56% | M97: 38% | N97: 14.42 | O97: 3.963498746e+12 | P97: 21,339 | Q97: 5% | R97: 0.02%
A98: 95 | B98: 66% | C98: 16,955 | D98: 0% | E98: 0 | F98: 44% | G98: 2,735,901 | H98: 45% | I98: 52,743 | J98: $144,299,563,402 | K98: 0 | L98: 45% | M98: 37% | N98: 11.00 | O98: 5.882690292e+11 | P98: 3,179 | Q98: 7% | R98: 0.02%
A99: 96 | B99: 68% | C99: 15,195 | D99: 0% | E99: 0 | F99: 56% | G99: 5,973,294 | H99: 46% | I99: 45,077 | J99: $269,258,798,128 | K99: 0 | L99: 46% | M99: 37% | N99: 11.00 | O99: 1.078193946e+12 | P99: 5,821 | Q99: 7% | R99: 0.02%
A100: 97 | B100: 80% | C100: 20,059 | D100: 0% | E100: 0 | F100: 36% | G100: 1,960,738 | H100: 38% | I100: 47,855 | J100: $93,831,444,257 | K100: 0 | L100: 38% | M100: 32% | N100: 11.00 | O100: 3.212867514e+11 | P100: 1,727 | Q100: 7% | R100: 0.02%
A101: 98 | B101: 42% | C101: 12,457 | D101: 0% | E101: 0 | F101: 75% | G101: 8,804,151 | H101: 34% | I101: 36,234 | J101: $319,010,115,560 | K101: 0 | L101: 34% | M101: 26% | N101: 11.00 | O101: 8.156963969e+11 | P101: 4,426 | Q101: 8% | R101: 0.02%
A102: 99 | B102: 53% | C102: 9,363 | D102: 0% | E102: 0 | F102: 77% | G102: 10,018,762 | H102: 43% | I102: 35,338 | J102: $354,039,343,012 | K102: 0 | L102: 43% | M102: 35% | N102: 11.00 | O102: 1.402700393e+12 | P102: 7,569 | Q102: 7% | R102: 0.02%
A103: 100 | B103: 59% | C103: 15,767 | D103: 86% | E103: 1 | F103: 60% | G103: 7,354,342 | H103: 45% | I103: 41,153 | J103: $302,655,265,526 | K103: $429,674,449,696 | L103: 66% | M103: 41% | N103: 14.09 | O103: 4.376455157e+12 | P103: 23,740 | Q103: 5% | R103: 0.02%
A104: 101 | B104: 72% | C104: 16,642 | D104: 62% | E104: 1 | F104: 95% | G104: 7,520,868 | H104: 34% | I104: 36,473 | J104: $274,311,897,330 | K104: $178,871,438,286 | L104: 52% | M104: 33% | N104: 13.57 | O104: 2.026738989e+12 | P104: 10,893 | Q104: 6% | R104: 0.02%
A105: 102 | B105: 64% | C105: 21,468 | D105: 0% | E105: 0 | F105: 95% | G105: 8,875,539 | H105: 29% | I105: 36,832 | J105: $326,901,702,233 | K105: 0 | L105: 29% | M105: 28% | N105: 11.00 | O105: 7.210516353e+11 | P105: 3,908 | Q105: 9% | R105: 0.02%
A106: 103 | B106: 40% | C106: 5,473 | D106: 0% | E106: 0 | F106: 47% | G106: 11,688,953 | H106: 40% | I106: 35,178 | J106: $411,198,837,125 | K106: 0 | L106: 40% | M106: 28% | N106: 11.00 | O106: 1.333499048e+12 | P106: 7,149 | Q106: 7% | R106: 0.02%
A107: 104 | B107: 44% | C107: 13,556 | D107: 0% | E107: 0 | F107: 86% | G107: 10,552,227 | H107: 29% | I107: 35,672 | J107: $376,420,493,401 | K107: 0 | L107: 29% | M107: 22% | N107: 11.00 | O107: 7.442374265e+11 | P107: 3,986 | Q107: 9% | R107: 0.02%
A108: 105 | B108: 68% | C108: 12,663 | D108: 85% | E108: 1 | F108: 48% | G108: 5,756,817 | H108: 38% | I108: 38,694 | J108: $222,756,705,839 | K108: $299,742,183,964 | L108: 62% | M108: 33% | N108: 14.01 | O108: 2.493904746e+12 | P108: 13,448 | Q108: 6% | R108: 0.02%
A109: 106 | B109: 60% | C109: 10,316 | D109: 0% | E109: 0 | F109: 56% | G109: 5,213,335 | H109: 31% | I109: 38,998 | J109: $203,311,228,049 | K109: 0 | L109: 31% | M109: 21% | N109: 11.00 | O109: 4.632001679e+11 | P109: 2,501 | Q109: 8% | R109: 0.02%
A110: 107 | B110: 63% | C110: 11,373 | D110: 54% | E110: 1 | F110: 58% | G110: 6,273,619 | H110: 33% | I110: 37,678 | J110: $236,380,171,019 | K110: $239,684,508,955 | L110: 57% | M110: 32% | N110: 14.20 | O110: 2.282722825e+12 | P110: 12,337 | Q110: 5% | R110: 0.02%
A111: 108 | B111: 46% | C111: 13,597 | D111: 0% | E111: 0 | F111: 95% | G111: 8,378,364 | H111: 37% | I111: 36,230 | J111: $303,548,924,027 | K111: 0 | L111: 37% | M111: 32% | N111: 11.00 | O111: 9.905251022e+11 | P111: 5,281 | Q111: 7% | R111: 0.02%
A112: 109 | B112: 53% | C112: 15,189 | D112: 0% | E112: 0 | F112: 72% | G112: 7,155,419 | H112: 38% | I112: 35,908 | J112: $256,934,052,080 | K112: 0 | L112: 38% | M112: 30% | N112: 11.00 | O112: 7.623708557e+11 | P112: 4,092 | Q112: 8% | R112: 0.02%
A113: 110 | B113: 36% | C113: 19,837 | D113: 0% | E113: 0 | F113: 68% | G113: 4,119,995 | H113: 36% | I113: 44,878 | J113: $184,895,208,317 | K113: 0 | L113: 36% | M113: 30% | N113: 11.00 | O113: 5.665194912e+11 | P113: 3,070 | Q113: 8% | R113: 0.02%
A114: 111 | B114: 42% | C114: 22,023 | D114: 0% | E114: 0 | F114: 60% | G114: 3,166,596 | H114: 42% | I114: 51,742 | J114: $163,846,393,465 | K114: 0 | L114: 42% | M114: 36% | N114: 11.00 | O114: 6.155762566e+11 | P114: 3,302 | Q114: 8% | R114: 0.02%
A115: 112 | B115: 55% | C115: 15,714 | D115: 0% | E115: 0 | F115: 42% | G115: 2,653,938 | H115: 40% | I115: 50,321 | J115: $133,547,613,543 | K115: 0 | L115: 40% | M115: 31% | N115: 11.00 | O115: 4.486220509e+11 | P115: 2,423 | Q115: 7% | R115: 0.02%
A116: 113 | B116: 46% | C116: 10,122 | D116: 41% | E116: 1 | F116: 63% | G116: 9,469,193 | H116: 39% | I116: 35,835 | J116: $339,331,482,941 | K116: $184,413,440,206 | L116: 53% | M116: 38% | N116: 13.45 | O116: 2.800803752e+12 | P116: 15,111 | Q116: 6% | R116: 0.02%
A117: 114 | B117: 68% | C117: 20,847 | D117: 0% | E117: 0 | F117: 92% | G117: 7,671,666 | H117: 30% | I117: 35,417 | J117: $271,705,484,508 | K117: 0 | L117: 30% | M117: 27% | N117: 11.00 | O117: 6.142445436e+11 | P117: 3,298 | Q117: 9% | R117: 0.02%
A118: 115 | B118: 60% | C118: 9,191 | D118: 47% | E118: 1 | F118: 93% | G118: 11,373,678 | H118: 37% | I118: 33,563 | J118: $381,731,193,508 | K118: $279,506,468,742 | L118: 55% | M118: 38% | N118: 13.81 | O118: 3.573760136e+12 | P118: 19,420 | Q118: 5% | R118: 0.02%
A119: 116 | B119: 50% | C119: 18,612 | D119: 0% | E119: 0 | F119: 18% | G119: 2,254,654 | H119: 48% | I119: 53,590 | J119: $120,825,875,809 | K119: 0 | L119: 48% | M119: 38% | N119: 11.00 | O119: 5.22766106e+11 | P119: 2,788 | Q119: 7% | R119: 0.02%
A120: 117 | B120: 62% | C120: 10,980 | D120: 0% | E120: 0 | F120: 22% | G120: 4,206,883 | H120: 44% | I120: 47,602 | J120: $200,255,407,890 | K120: 0 | L120: 44% | M120: 34% | N120: 11.00 | O120: 7.775787453e+11 | P120: 4,202 | Q120: 7% | R120: 0.02%
A121: 118 | B121: 70% | C121: 15,750 | D121: 50% | E121: 1 | F121: 56% | G121: 4,495,643 | H121: 41% | I121: 44,889 | J121: $201,806,935,421 | K121: $276,619,565,372 | L121: 64% | M121: 33% | N121: 13.90 | O121: 2.28623533e+12 | P121: 12,390 | Q121: 6% | R121: 0.02%
A122: 119 | B122: 29% | C122: 18,776 | D122: 0% | E122: 0 | F122: 33% | G122: 1,889,041 | H122: 29% | I122: 53,663 | J122: $101,370,991,741 | K122: 0 | L122: 29% | M122: 19% | N122: 11.00 | O122: 2.0872709e+11 | P122: 1,130 | Q122: 8% | R122: 0.02%
A123: 120 | B123: 58% | C123: 18,278 | D123: 0% | E123: 0 | F123: 40% | G123: 3,616,192 | H123: 42% | I123: 44,502 | J123: $160,928,068,374 | K123: 0 | L123: 42% | M123: 35% | N123: 11.00 | O123: 6.140106217e+11 | P123: 3,308 | Q123: 8% | R123: 0.02%
A124: 121 | B124: 71% | C124: 17,369 | D124: 0% | E124: 0 | F124: 49% | G124: 2,697,739 | H124: 42% | I124: 50,387 | J124: $135,930,516,068 | K124: 0 | L124: 42% | M124: 32% | N124: 11.00 | O124: 4.677786253e+11 | P124: 2,524 | Q124: 8% | R124: 0.02%
A125: 122 | B125: 36% | C125: 7,586 | D125: 0% | E125: 0 | F125: 42% | G125: 7,225,546 | H125: 36% | I125: 37,980 | J125: $274,426,909,213 | K125: 0 | L125: 36% | M125: 25% | N125: 11.00 | O125: 7.743384468e+11 | P125: 4,169 | Q125: 7% | R125: 0.02%
A126: 123 | B126: 45% | C126: 11,484 | D126: 0% | E126: 0 | F126: 35% | G126: 5,102,060 | H126: 41% | I126: 40,742 | J126: $207,866,832,411 | K126: 0 | L126: 41% | M126: 32% | N126: 11.00 | O126: 7.473225073e+11 | P126: 4,014 | Q126: 7% | R126: 0.02%
A127: 124 | B127: 44% | C127: 20,443 | D127: 0% | E127: 0 | F127: 44% | G127: 2,777,643 | H127: 44% | I127: 53,555 | J127: $148,757,007,010 | K127: 0 | L127: 44% | M127: 39% | N127: 11.00 | O127: 6.260430215e+11 | P127: 3,392 | Q127: 7% | R127: 0.02%
A128: 125 | B128: 50% | C128: 16,181 | D128: 54% | E128: 1 | F128: 63% | G128: 4,789,676 | H128: 46% | I128: 44,948 | J128: $215,285,285,867 | K128: $248,799,374,717 | L128: 64% | M128: 46% | N128: 14.05 | O128: 3.15409e+12 | P128: 17,078 | Q128: 5% | R128: 0.02%
A129: 126 | B129: 72% | C129: 18,264 | D129: 56% | E129: 1 | F129: 83% | G129: 9,567,919 | H129: 39% | I129: 35,984 | J129: $344,289,808,200 | K129: $329,494,141,914 | L129: 59% | M129: 38% | N129: 13.64 | O129: 3.489537844e+12 | P129: 18,854 | Q129: 6% | R129: 0.02%
A130: 127 | B130: 34% | C130: 14,720 | D130: 0% | E130: 0 | F130: 67% | G130: 3,476,782 | H130: 34% | I130: 48,909 | J130: $170,046,609,893 | K130: 0 | L130: 34% | M130: 25% | N130: 11.00 | O130: 4.472911142e+11 | P130: 2,422 | Q130: 8% | R130: 0.02%
A131: 128 | B131: 38% | C131: 15,559 | D131: 0% | E131: 0 | F131: 75% | G131: 7,783,026 | H131: 32% | I131: 37,819 | J131: $294,348,390,186 | K131: 0 | L131: 32% | M131: 27% | N131: 11.00 | O131: 7.737020435e+11 | P131: 4,186 | Q131: 8% | R131: 0.02%
A132: 129 | B132: 69% | C132: 15,556 | D132: 0% | E132: 0 | F132: 67% | G132: 4,671,395 | H132: 39% | I132: 42,340 | J132: $197,784,930,882 | K132: 0 | L132: 39% | M132: 32% | N132: 11.00 | O132: 6.753616448e+11 | P132: 3,656 | Q132: 8% | R132: 0.02%
A133: =A132+1 -> 130 | B133: 59% | C133: 12,472 | D133: 0% | E133: 0 | F133: 71% | G133: 7,178,190 | H133: 39% | I133: 35,880 | J133: $257,549,938,437 | K133: 0 | L133: 39% | M133: 32% | N133: 11.00 | O133: 8.81461048e+11 | P133: 4,715 | Q133: 7% | R133: 0.02%
A134: 131 | B134: 50% | C134: 11,345 | D134: 0% | E134: 0 | F134: 38% | G134: 4,814,426 | H134: 44% | I134: 42,297 | J134: $203,636,259,291 | K134: 0 | L134: 44% | M134: 36% | N134: 11.00 | O134: 8.112175599e+11 | P134: 4,377 | Q134: 7% | R134: 0.02%
A135: 132 | B135: 69% | C135: 11,218 | D135: 48% | E135: 1 | F135: 40% | G135: 4,702,311 | H135: 44% | I135: 44,183 | J135: $207,763,280,970 | K135: $249,726,483,885 | L135: 64% | M135: 35% | N135: 13.86 | O135: 2.344778911e+12 | P135: 12,692 | Q135: 6% | R135: 0.02%
A136: 133 | B136: 47% | C136: 14,655 | D136: 0% | E136: 0 | F136: 25% | G136: 3,024,335 | H136: 47% | I136: 53,666 | J136: $162,303,938,492 | K136: 0 | L136: 47% | M136: 39% | N136: 11.00 | O136: 7.189754916e+11 | P136: 3,886 | Q136: 7% | R136: 0.02%
A137: 134 | B137: 57% | C137: 12,316 | D137: 49% | E137: 1 | F137: 73% | G137: 8,264,018 | H137: 48% | I137: 37,185 | J137: $307,295,745,135 | K137: $332,345,152,412 | L137: 65% | M137: 44% | N137: 13.87 | O137: 4.153199254e+12 | P137: 22,437 | Q137: 5% | R137: 0.02%
A138: 135 | B138: 61% | C138: 15,538 | D138: 0% | E138: 0 | F138: 95% | G138: 7,427,097 | H138: 45% | I138: 37,943 | J138: $281,806,057,669 | K138: 0 | L138: 45% | M138: 38% | N138: 11.00 | O138: 1.152371777e+12 | P138: 6,226 | Q138: 7% | R138: 0.02%
A139: 136 | B139: 44% | C139: 15,437 | D139: 0% | E139: 0 | F139: 89% | G139: 10,946,449 | H139: 34% | I139: 32,492 | J139: $355,669,566,930 | K139: 0 | L139: 34% | M139: 31% | N139: 11.00 | O139: 9.98202322e+11 | P139: 5,405 | Q139: 8% | R139: 0.02%
A140: 137 | B140: 34% | C140: 8,294 | D140: 0% | E140: 0 | F140: 62% | G140: 9,855,412 | H140: 34% | I140: 35,081 | J140: $345,734,711,393 | K140: 0 | L140: 34% | M140: 24% | N140: 11.00 | O140: 9.160661251e+11 | P140: 4,967 | Q140: 7% | R140: 0.02%
A141: 138 | B141: 48% | C141: 24,442 | D141: 0% | E141: 0 | F141: 95% | G141: 5,488,314 | H141: 44% | I141: 43,664 | J141: $239,641,541,324 | K141: 0 | L141: 44% | M141: 41% | N141: 11.00 | O141: 9.865374794e+11 | P141: 5,310 | Q141: 8% | R141: 0.02%
A142: 139 | B142: 59% | C142: 15,170 | D142: 0% | E142: 0 | F142: 33% | G142: 3,178,566 | H142: 47% | I142: 49,726 | J142: $158,057,727,257 | K142: 0 | L142: 47% | M142: 40% | N142: 11.00 | O142: 7.13449782e+11 | P142: 3,868 | Q142: 7% | R142: 0.02%
A143: 140 | B143: 70% | C143: 12,068 | D143: 83% | E143: 1 | F143: 71% | G143: 9,749,314 | H143: 43% | I143: 35,875 | J143: $349,752,086,467 | K143: $398,389,615,236 | L143: 63% | M143: 26% | N143: 13.03 | O143: 2.602735997e+12 | P143: 13,934 | Q143: 6% | R143: 0.02%
A144: 141 | B144: 49% | C144: 11,878 | D144: 0% | E144: 0 | F144: 68% | G144: 5,978,100 | H144: 32% | I144: 40,265 | J144: $240,707,473,358 | K144: 0 | L144: 32% | M144: 23% | N144: 11.00 | O144: 5.705336565e+11 | P144: 3,080 | Q144: 8% | R144: 0.02%
A145: 142 | B145: 45% | C145: 9,778 | D145: 52% | E145: 1 | F145: 85% | G145: 13,614,081 | H145: 33% | I145: 31,616 | J145: $430,418,177,793 | K145: $346,326,711,594 | L145: 54% | M145: 23% | N145: 13.16 | O145: 2.389469362e+12 | P145: 12,943 | Q145: 6% | R145: 0.02%
A146: 143 | B146: 58% | C146: 24,660 | D146: 0% | E146: 0 | F146: 0% | G146: 1,274,961 | H146: 41% | I146: 54,095 | J146: $68,968,391,035 | K146: 0 | L146: 41% | M146: 32% | N146: 11.00 | O146: 2.539743291e+11 | P146: 1,364 | Q146: 7% | R146: 0.02%
A147: 144 | B147: 53% | C147: 19,957 | D147: 0% | E147: 0 | F147: 52% | G147: 2,825,759 | H147: 39% | I147: 48,622 | J147: $137,394,145,621 | K147: 0 | L147: 39% | M147: 31% | N147: 11.00 | O147: 4.460637086e+11 | P147: 2,421 | Q147: 8% | R147: 0.02%
A148: 145 | B148: 68% | C148: 15,356 | D148: 58% | E148: 1 | F148: 57% | G148: 6,410,811 | H148: 36% | I148: 37,861 | J148: $242,721,849,010 | K148: $318,667,167,311 | L148: 61% | M148: 47% | N148: 14.58 | O148: 4.012013512e+12 | P148: 21,575 | Q148: 5% | R148: 0.02%
A149: 146 | B149: 53% | C149: 8,389 | D149: 0% | E149: 0 | F149: 41% | G149: 6,668,159 | H149: 45% | I149: 36,738 | J149: $244,971,982,379 | K149: 0 | L149: 45% | M149: 35% | N149: 11.00 | O149: 1.01780803e+12 | P149: 5,484 | Q149: 7% | R149: 0.02%
A150: 147 | B150: 62% | C150: 17,351 | D150: 0% | E150: 0 | F150: 90% | G150: 6,054,574 | H150: 25% | I150: 39,621 | J150: $239,887,891,664 | K150: 0 | L150: 25% | M150: 19% | N150: 11.00 | O150: 4.047491391e+11 | P150: 2,185 | Q150: 9% | R150: 0.02%
A151: 148 | B151: 37% | C151: 22,338 | D151: 0% | E151: 0 | F151: 85% | G151: 7,833,690 | H151: 37% | I151: 38,670 | J151: $302,932,420,119 | K151: 0 | L151: 37% | M151: 35% | N151: 11.00 | O151: 9.777482393e+11 | P151: 5,304 | Q151: 9% | R151: 0.02%
A152: 149 | B152: 55% | C152: 17,197 | D152: 75% | E152: 1 | F152: 85% | G152: 11,208,294 | H152: 19% | I152: 31,523 | J152: $353,315,961,211 | K152: $481,595,110,007 | L152: 54% | M152: 29% | N152: 14.82 | O152: 3.516821804e+12 | P152: 18,927 | Q152: 5% | R152: 0.02%
A153: 150 | B153: 50% | C153: 17,104 | D153: 40% | E153: 1 | F153: 73% | G153: 6,597,095 | H153: 32% | I153: 38,725 | J153: $255,473,356,669 | K153: $252,998,855,187 | L153: 56% | M153: 36% | N153: 14.20 | O153: 2.622778477e+12 | P153: 14,103 | Q153: 6% | R153: 0.02%
A154: 151 | B154: 41% | C154: 16,923 | D154: 0% | E154: 0 | F154: 39% | G154: 2,898,139 | H154: 41% | I154: 46,750 | J154: $135,488,436,987 | K154: 0 | L154: 41% | M154: 33% | N154: 11.00 | O154: 4.839046042e+11 | P154: 2,607 | Q154: 8% | R154: 0.02%
A155: 152 | B155: 31% | C155: 20,569 | D155: 0% | E155: 0 | F155: 54% | G155: 3,348,216 | H155: 31% | I155: 53,091 | J155: $177,759,474,202 | K155: 0 | L155: 31% | M155: 24% | N155: 11.00 | O155: 4.353085602e+11 | P155: 2,362 | Q155: 8% | R155: 0.02%
A156: 153 | B156: 37% | C156: 27,000 | D156: 0% | E156: 0 | F156: 52% | G156: 1,975,799 | H156: 37% | I156: 53,644 | J156: $105,988,950,995 | K156: 0 | L156: 37% | M156: 32% | N156: 11.00 | O156: 3.499079568e+11 | P156: 1,893 | Q156: 8% | R156: 0.02%
A157: 154 | B157: 59% | C157: 17,096 | D157: 0% | E157: 0 | F157: 64% | G157: 6,810,575 | H157: 34% | I157: 39,295 | J157: $267,624,374,105 | K157: 0 | L157: 34% | M157: 27% | N157: 11.00 | O157: 7.262990641e+11 | P157: 3,874 | Q157: 8% | R157: 0.02%
A158: 155 | B158: 21% | C158: 12,078 | D158: 66% | E158: 1 | F158: 52% | G158: 5,381,962 | H158: 21% | I158: 41,257 | J158: $222,045,794,228 | K158: $248,958,274,501 | L158: 52% | M158: 32% | N158: 15.02 | O158: 2.297625896e+12 | P158: 12,404 | Q158: 5% | R158: 0.02%
A159: 156 | B159: 62% | C159: 13,598 | D159: 62% | E159: 1 | F159: 85% | G159: 5,076,667 | H159: 28% | I159: 40,782 | J159: $207,038,983,973 | K159: $283,666,899,967 | L159: 58% | M159: 30% | N159: 14.69 | O159: 2.271529903e+12 | P159: 12,252 | Q159: 5% | R159: 0.02%
A160: 157 | B160: 60% | C160: 16,970 | D160: 48% | E160: 1 | F160: 58% | G160: 5,581,908 | H160: 38% | I160: 40,397 | J160: $225,490,068,435 | K160: $213,065,366,208 | L160: 58% | M160: 41% | N160: 14.04 | O160: 2.573407704e+12 | P160: 13,733 | Q160: 6% | R160: 0.02%
A161: 158 | B161: 53% | C161: 21,492 | D161: 0% | E161: 0 | F161: 84% | G161: 4,861,044 | H161: 36% | I161: 40,478 | J161: $196,766,584,841 | K161: 0 | L161: 36% | M161: 32% | N161: 11.00 | O161: 6.188626343e+11 | P161: 3,309 | Q161: 8% | R161: 0.02%
A162: 159 | B162: 51% | C162: 5,000 | D162: 0% | E162: 0 | F162: 59% | G162: 11,081,594 | H162: 42% | I162: 36,393 | J162: $403,296,699,712 | K162: 0 | L162: 42% | M162: 29% | N162: 11.00 | O162: 1.373873213e+12 | P162: 7,406 | Q162: 7% | R162: 0.02%
A163: 160 | B163: 55% | C163: 17,482 | D163: 60% | E163: 1 | F163: 71% | G163: 6,735,725 | H163: 29% | I163: 38,296 | J163: $257,949,267,307 | K163: $347,780,764,246 | L163: 58% | M163: 35% | N163: 14.56 | O163: 3.167417164e+12 | P163: 17,079 | Q163: 5% | R163: 0.02%
A164: 161 | B164: 49% | C164: 23,072 | D164: 0% | E164: 0 | F164: 35% | G164: 1,934,901 | H164: 44% | I164: 53,724 | J164: $103,950,948,265 | K164: 0 | L164: 44% | M164: 36% | N164: 11.00 | O164: 4.140566551e+11 | P164: 2,237 | Q164: 7% | R164: 0.02%
A165: 162 | B165: 44% | C165: 8,541 | D165: 78% | E165: 1 | F165: 56% | G165: 6,698,226 | H165: 38% | I165: 37,811 | J165: $253,266,983,863 | K165: $312,385,665,175 | L165: 61% | M165: 30% | N165: 13.83 | O165: 2.471483196e+12 | P165: 13,389 | Q165: 5% | R165: 0.02%
A166: 163 | B166: 55% | C166: 18,570 | D166: 0% | E166: 0 | F166: 53% | G166: 4,135,752 | H166: 42% | I166: 48,906 | J166: $202,264,272,921 | K166: 0 | L166: 42% | M166: 34% | N166: 11.00 | O166: 7.400979524e+11 | P166: 3,973 | Q166: 8% | R166: 0.02%
A167: 164 | B167: 42% | C167: 18,839 | D167: 0% | E167: 0 | F167: 95% | G167: 8,496,442 | H167: 30% | I167: 38,943 | J167: $330,876,627,856 | K167: 0 | L167: 30% | M167: 27% | N167: 11.00 | O167: 7.885404193e+11 | P167: 4,288 | Q167: 9% | R167: 0.02%
A168: 165 | B168: 28% | C168: 19,732 | D168: 0% | E168: 0 | F168: 93% | G168: 9,165,919 | H168: 28% | I168: 37,178 | J168: $340,770,227,194 | K168: 0 | L168: 28% | M168: 25% | N168: 11.00 | O168: 6.82477666e+11 | P168: 3,700 | Q168: 10% | R168: 0.02%
A169: 166 | B169: 45% | C169: 13,212 | D169: 0% | E169: 0 | F169: 46% | G169: 6,407,857 | H169: 42% | I169: 41,408 | J169: $265,337,341,086 | K169: 0 | L169: 42% | M169: 35% | N169: 11.00 | O169: 1.002053501e+12 | P169: 5,390 | Q169: 8% | R169: 0.02%
A170: 167 | B170: 49% | C170: 17,406 | D170: 62% | E170: 1 | F170: 95% | G170: 8,136,410 | H170: 36% | I170: 34,876 | J170: $283,761,571,848 | K170: $358,306,529,055 | L170: 61% | M170: 32% | N170: 13.68 | O170: 2.834435546e+12 | P170: 15,169 | Q170: 6% | R170: 0.02%
A171: 168 | B171: 41% | C171: 15,054 | D171: 90% | E171: 1 | F171: 77% | G171: 9,003,217 | H171: 28% | I171: 35,606 | J171: $320,571,406,021 | K171: $662,187,402,105 | L171: 63% | M171: 30% | N171: 14.82 | O171: 4.552077834e+12 | P171: 24,608 | Q171: 5% | R171: 0.02%
A172: 169 | B172: 59% | C172: 17,114 | D172: 0% | E172: 0 | F172: 39% | G172: 2,892,237 | H172: 47% | I172: 52,637 | J172: $152,238,389,151 | K172: 0 | L172: 47% | M172: 39% | N172: 11.00 | O172: 6.603094364e+11 | P172: 3,539 | Q172: 7% | R172: 0.02%
A173: 170 | B173: 45% | C173: 16,809 | D173: 0% | E173: 0 | F173: 60% | G173: 5,902,966 | H173: 32% | I173: 38,339 | J173: $226,315,465,759 | K173: 0 | L173: 32% | M173: 26% | N173: 11.00 | O173: 5.734266933e+11 | P173: 3,069 | Q173: 8% | R173: 0.02%
A174: 171 | B174: 56% | C174: 22,873 | D174: 0% | E174: 0 | F174: 60% | G174: 2,920,357 | H174: 40% | I174: 48,632 | J174: $142,021,487,571 | K174: 0 | L174: 40% | M174: 33% | N174: 11.00 | O174: 4.768392071e+11 | P174: 2,564 | Q174: 8% | R174: 0.02%
A175: 172 | B175: 46% | C175: 9,000 | D175: 0% | E175: 0 | F175: 82% | G175: 8,329,045 | H175: 42% | I175: 35,412 | J175: $294,947,502,213 | K175: 0 | L175: 42% | M175: 33% | N175: 11.00 | O175: 1.08725941e+12 | P175: 5,891 | Q175: 7% | R175: 0.02%
A176: 173 | B176: 44% | C176: 21,759 | D176: 0% | E176: 0 | F176: 37% | G176: 2,416,965 | H176: 44% | I176: 53,632 | J176: $129,626,908,585 | K176: 0 | L176: 44% | M176: 37% | N176: 11.00 | O176: 5.352554751e+11 | P176: 2,898 | Q176: 7% | R176: 0.02%
A177: 174 | B177: 36% | C177: 25,401 | D177: 72% | E177: 1 | F177: 31% | G177: 2,506,475 | H177: 36% | I177: 53,682 | J177: $134,551,601,722 | K177: $193,605,177,006 | L177: 62% | M177: 38% | N177: 14.29 | O177: 1.825314282e+12 | P177: 9,730 | Q177: 6% | R177: 0.02%
A178: 175 | B178: 43% | C178: 20,100 | D178: 76% | E178: 1 | F178: 70% | G178: 6,441,537 | H178: 34% | I178: 38,571 | J178: $248,459,670,252 | K178: $441,350,788,351 | L178: 63% | M178: 40% | N178: 14.60 | O178: 4.113106139e+12 | P178: 21,960 | Q178: 5% | R178: 0.02%
A179: 176 | B179: 42% | C179: 7,914 | D179: 63% | E179: 1 | F179: 36% | G179: 7,460,973 | H179: 39% | I179: 35,128 | J179: $262,088,517,017 | K179: $330,853,780,854 | L179: 62% | M179: 31% | N179: 13.94 | O179: 2.7255869e+12 | P179: 14,413 | Q179: 5% | R179: 0.02%
A180: 177 | B180: 45% | C180: 17,602 | D180: 70% | E180: 1 | F180: 47% | G180: 5,688,984 | H180: 33% | I180: 40,370 | J180: $229,665,454,682 | K180: $245,826,710,432 | L180: 57% | M180: 38% | N180: 14.19 | O180: 2.637180335e+12 | P180: 14,182 | Q180: 6% | R180: 0.02%
A181: 178 | B181: 36% | C181: 12,638 | D181: 57% | E181: 1 | F181: 65% | G181: 6,915,463 | H181: 28% | I181: 34,557 | J181: $238,978,357,171 | K181: $263,841,593,462 | L181: 55% | M181: 30% | N181: 14.26 | O181: 2.230371722e+12 | P181: 11,936 | Q181: 6% | R181: 0.02%
A182: 179 | B182: 65% | C182: 18,014 | D182: 81% | E182: 1 | F182: 63% | G182: 3,512,613 | H182: 38% | I182: 44,420 | J182: $156,030,035,004 | K182: $298,736,531,160 | L182: 66% | M182: 27% | N182: 13.91 | O182: 1.738962994e+12 | P182: 9,405 | Q182: 6% | R182: 0.02%
A183: 180 | B183: 52% | C183: 13,043 | D183: 0% | E183: 0 | F183: 59% | G183: 8,586,882 | H183: 35% | I183: 36,089 | J183: $309,890,903,967 | K183: 0 | L183: 35% | M183: 27% | N183: 11.00 | O183: 8.569802286e+11 | P183: 4,607 | Q183: 8% | R183: 0.02%
A184: 181 | B184: 72% | C184: 20,021 | D184: 0% | E184: 0 | F184: 40% | G184: 2,994,437 | H184: 37% | I184: 44,513 | J184: $133,292,089,072 | K184: 0 | L184: 37% | M184: 31% | N184: 11.00 | O184: 4.470022383e+11 | P184: 2,348 | Q184: 8% | R184: 0.02%
A185: 182 | B185: 57% | C185: 7,897 | D185: 75% | E185: 1 | F185: 49% | G185: 7,519,002 | H185: 42% | I185: 38,049 | J185: $286,087,236,742 | K185: $285,121,891,437 | L185: 61% | M185: 37% | N185: 13.87 | O185: 3.171400585e+12 | P185: 16,894 | Q185: 5% | R185: 0.02%
A186: 183 | B186: 31% | C186: 14,714 | D186: 0% | E186: 0 | F186: 46% | G186: 4,298,213 | H186: 31% | I186: 45,709 | J186: $196,465,204,833 | K186: 0 | L186: 31% | M186: 23% | N186: 11.00 | O186: 4.858216761e+11 | P186: 2,626 | Q186: 8% | R186: 0.02%
A187: 184 | B187: 35% | C187: 16,527 | D187: 0% | E187: 0 | F187: 95% | G187: 7,484,323 | H187: 35% | I187: 35,368 | J187: $264,707,892,504 | K187: 0 | L187: 35% | M187: 30% | N187: 11.00 | O187: 7.565848731e+11 | P187: 4,028 | Q187: 8% | R187: 0.02%
A188: 185 | B188: 39% | C188: 18,232 | D188: 38% | E188: 1 | F188: 83% | G188: 8,462,110 | H188: 25% | I188: 37,317 | J188: $315,777,743,687 | K188: $247,330,038,918 | L188: 49% | M188: 29% | N188: 14.07 | O188: 2.194288767e+12 | P188: 11,837 | Q188: 6% | R188: 0.02%
A189: 186 | B189: 53% | C189: 12,538 | D189: 0% | E189: 0 | F189: 41% | G189: 4,209,440 | H189: 32% | I189: 40,182 | J189: $169,145,431,190 | K189: 0 | L189: 32% | M189: 22% | N189: 11.00 | O189: 3.841774695e+11 | P189: 2,079 | Q189: 8% | R189: 0.02%
A190: 187 | B190: 50% | C190: 13,062 | D190: 0% | E190: 0 | F190: 67% | G190: 9,139,134 | H190: 38% | I190: 36,341 | J190: $332,126,213,256 | K190: 0 | L190: 38% | M190: 30% | N190: 11.00 | O190: 1.000188957e+12 | P190: 5,305 | Q190: 8% | R190: 0.02%
A191: 188 | B191: 70% | C191: 14,938 | D191: 0% | E191: 0 | F191: 64% | G191: 7,958,113 | H191: 32% | I191: 35,471 | J191: $282,279,804,023 | K191: 0 | L191: 32% | M191: 24% | N191: 11.00 | O191: 6.503454868e+11 | P191: 3,486 | Q191: 8% | R191: 0.02%
A192: 189 | B192: 40% | C192: 14,962 | D192: 0% | E192: 0 | F192: 54% | G192: 3,926,425 | H192: 39% | I192: 45,708 | J192: $179,468,425,351 | K192: 0 | L192: 39% | M192: 31% | N192: 11.00 | O192: 5.899113097e+11 | P192: 3,191 | Q192: 8% | R192: 0.02%
A193: 190 | B193: 37% | C193: 20,967 | D193: 0% | E193: 0 | F193: 64% | G193: 5,446,680 | H193: 33% | I193: 38,357 | J193: $208,916,535,986 | K193: 0 | L193: 33% | M193: 27% | N193: 11.00 | O193: 5.424018857e+11 | P193: 2,922 | Q193: 9% | R193: 0.02%
A194: 191 | B194: 55% | C194: 13,262 | D194: 0% | E194: 0 | F194: 17% | G194: 3,432,926 | H194: 51% | I194: 48,904 | J194: $167,884,722,118 | K194: 0 | L194: 51% | M194: 42% | N194: 11.00 | O194: 8.076039513e+11 | P194: 4,331 | Q194: 7% | R194: 0.02%
A195: 192 | B195: 44% | C195: 26,561 | D195: 0% | E195: 0 | F195: 57% | G195: 2,198,222 | H195: 41% | I195: 53,599 | J195: $117,822,428,382 | K195: 0 | L195: 41% | M195: 35% | N195: 11.00 | O195: 4.30451373e+11 | P195: 2,312 | Q195: 8% | R195: 0.02%
A196: 193 | B196: 53% | C196: 11,243 | D196: 0% | E196: 0 | F196: 49% | G196: 5,320,262 | H196: 38% | I196: 42,195 | J196: $224,486,136,827 | K196: 0 | L196: 38% | M196: 27% | N196: 11.00 | O196: 6.713548285e+11 | P196: 3,586 | Q196: 7% | R196: 0.02%
A197: =A196+1 -> 194 | B197: 38% | C197: 15,260 | D197: 37% | E197: 1 | F197: 33% | G197: 4,461,047 | H197: 38% | I197: 43,214 | J197: $192,778,813,878 | K197: $212,584,787,622 | L197: 60% | M197: 41% | N197: 14.21 | O197: 2.449376293e+12 | P197: 13,044 | Q197: 5% | R197: 0.02%
A198: 195 | B198: 61% | C198: 15,074 | D198: 0% | E198: 0 | F198: 9% | G198: 2,490,020 | H198: 47% | I198: 53,499 | J198: $133,213,556,892 | K198: 0 | L198: 47% | M198: 38% | N198: 11.00 | O198: 5.935014666e+11 | P198: 3,218 | Q198: 7% | R198: 0.02%
A199: 196 | B199: 51% | C199: 13,670 | D199: 47% | E199: 1 | F199: 65% | G199: 8,104,923 | H199: 34% | I199: 36,410 | J199: $295,100,600,902 | K199: $251,841,819,165 | L199: 55% | M199: 34% | N199: 13.87 | O199: 2.670569648e+12 | P199: 14,317 | Q199: 6% | R199: 0.02%
A200: 197 | B200: 40% | C200: 10,711 | D200: 0% | E200: 0 | F200: 61% | G200: 6,583,799 | H200: 38% | I200: 37,479 | J200: $246,756,544,709 | K200: 0 | L200: 38% | M200: 27% | N200: 11.00 | O200: 7.290885407e+11 | P200: 3,889 | Q200: 7% | R200: 0.02%
A201: 198 | B201: 52% | C201: 13,742 | D201: 0% | E201: 0 | F201: 41% | G201: 5,645,554 | H201: 38% | I201: 38,112 | J201: $215,162,668,891 | K201: 0 | L201: 38% | M201: 29% | N201: 11.00 | O201: 6.77117344e+11 | P201: 3,599 | Q201: 8% | R201: 0.02%
... 4802 more rows
